Workbook

Sheet README
B2: With the values you have type in, the CDI behavior will be as the following:
H4: Where to change that?
A6: A) | B6: =CONCATENATE("0 degrees ",VeryLowRPM!B2) -> 0 degrees advance from 91 to 480 RPM | H6: default behavior, Can be altered by changing cell C11 in VeryLowRPM tab
A8: B) | B8: =CONCATENATE("Flat advance from ",advance_at_lowRPM!Z7," to ",Advance_curve!D103,"RPM") -> Flat advance from 480 to 1001RPM | H8: cell I2 in tab "advance_at_lowRPM"
A10: C) | B10: =CONCATENATE("Advance curve is freely adjustable from ",Advance_curve!D103, " to ",Advance_curve!D11,"RPM") -> Advance curve is freely adjustable from 1001 to 4687RPM | H10: column F in tab "Advance_curve"
A12: D) | B12: =CONCATENATE("No spark when engine goes above ",Advance_curve!D9,"RPM - Act as absolute rev-limiter") -> No spark when engine goes above 5095RPM - Act as absolute rev-limiter | H12: cell B9 in tab "Advance_curve"
B14: Eprom values to burn into the microcontroller are in | H14: cells Q17 to Q51 in tab "Advance_curve"
B17: ONLY YELLOW CELLS ARE CHANGEABLE

Sheet Advance_curve
A1: 05/02/2021 | D1: Version DC-CDI v79r7c11 | I1: 1 | J1: 79 | K1: 7 | L1: 11
B2: Proc: | C2: 16F1827
B3: Clock: | C3: 16 | D3: MHz | F3: 1 i | I3: incompressible | L3: Step
B4: Fosc/4 | C4: =C3/4 -> 4 | D4: MHz | F4: pickup position | I4: delay (us) | L4: (us)
B5: TMR1h max | C5: =MAX(B173:B335) -> 117 | F5: 50 | G5: degrees BTDC | I5: 390 | L5: 40
B6: Frq min | C6: =MIN(D174:D335) -> 16.69337607 | F6: =IF(MAX(L9:L103)>254,"Some cells warn. Increase STEP cell L5 ?","") -> 
B7: RPM min | C7: =MIN(D175:D335) -> 16.69337607 | F7: 4 i | L7: =IF(ISERROR(L9),"Load DECHEX macro","") -> 
B8: TIMER1H count | C8: Frq (Hz) | D8: RPM | E8: time for 1° (µs) | F8: Advance (degrees) | G8: Delay needed (ms) | H8: Delay nedeed (µs) | I8: Delay to wait (µs) | J8: Correct (us) | L8: Values for the map
A9: 3 g | B9: 23 | C9: =IFERROR(1000000/(B9*256*($O$30/$C$4)),"") -> 84.91847826 | D9: =INT(60*C9*$O$25/2*$O$24) -> 5095 | E9: =((1000*1000*60)/($O$24*$D9))/360 -> 32.71180896 | F9: 45.7796 | G9: =(E9*($F$5-F9))/1000 -> 0.1380569185 | H9: =E9*($F$5-F9) -> 138.0569185 | I9: =IF($H9>$I$5,INT($H9-$I$5),"0") -> 0 | J9: 0 | K9: =IF(($I9/$L$5)-$J9>255,255,IF($I9>0.01,INT($I9-$J9)/$L$5,1)) -> 0 | L9: =IF($K9 > 0,$K9,0) -> 0 | M9: =IF($I9/$L$5>255,CONCATENATE("WARNING: Timing will be more then ",F9,"°"),"") ->  | Z9: =CONCATENATE(L9," ;",ROUND(#REF!,0),"rpm | ",ROUND(F9,1),"° | ",,ROUND(G9,2),"ms ") -> 
A10: =IF($B10>255,CONCATENATE("ERROR: Timer1H too large"),"") ->  | B10: =IF((B9+1)<(95+$B$9),B9+1,"- End -") -> 24 | C10: =IFERROR(1000000/(B10*256*($O$30/$C$4)),"") -> 81.38020833 | D10: =INT(60*C10*$O$25/2*$O$24) -> 4882 | E10: 34.13901407 | F10: 42.88916 | G10: 0.2427570668 | H10: 242.7570668 | I10: 0 | J10: 0 | K10: =IF(($I10/$L$5)-$J10>255,255,IF($I10>0.01,INT($I10-$J10)/$L$5,1)) -> 0 | L10: =IF($K10 > 0,$K10,0) -> 0 | M10: =IF($I10/$L$5>255,CONCATENATE("WARNING: Timing will be more then ",F10,"°"),"") ->  | Z10: =CONCATENATE(L10," ;",ROUND(#REF!,0),"rpm | ",ROUND(F10,1),"° | ",,ROUND(G10,2),"ms ") -> 
A11: =IF($B11>255,CONCATENATE("ERROR: Timer1H too large"),"") ->  | B11: =IF((B10+1)<(95+$B$9),B10+1,"- End -") -> 25 | C11: 78.125 | D11: 4687 | E11: 35.55934855 | F11: 40.36132 | G11: 0.3427451817 | H11: 342.7451817 | I11: 0 | J11: 0 | K11: 0 | L11: 0 | Z11: =CONCATENATE(L11," ;",ROUND(#REF!,0),"rpm | ",ROUND(F11,1),"° | ",,ROUND(G11,2),"ms ") -> 
B12: 26 | C12: 75.12019231 | D12: 4507 | E12: 36.97951335 | F12: 38.12874 | G12: 0.4389934176 | H12: 438.9934176 | I12: 48 | J12: 0 | K12: 1.2 | L12: 1.2 | Z12: =CONCATENATE(L12," ;",ROUND(#REF!,0),"rpm | ",ROUND(F12,1),"° | ",,ROUND(G12,2),"ms ") -> 
B13: 27 | C13: 72.33796296 | D13: 4340 | E13: 38.40245776 | F13: 36.1448 | G13: 0.5320737327 | H13: 532.0737327 | I13: 142 | J13: 0 | K13: 3.55 | L13: 3.55 | Z13: =CONCATENATE(L13," ;",ROUND(#REF!,0),"rpm | ",ROUND(F13,1),"° | ",,ROUND(G13,2),"ms ") -> 
B14: 28 | C14: 69.75446429 | D14: 4185 | E14: 39.82477101 | F14: 34.36806 | G14: 0.6225384309 | H14: 622.5384309 | I14: 232 | J14: 0 | K14: 5.8 | L14: 5.8 | Z14: =CONCATENATE(L14," ;",ROUND(#REF!,0),"rpm | ",ROUND(F14,1),"° | ",,ROUND(G14,2),"ms ") -> 
B15: 29 | C15: 67.34913793 | D15: 4040 | E15: 41.25412541 | F15: 32.77262 | G15: 0.710700495 | H15: 710.700495 | I15: 320 | J15: 0 | K15: 8 | L15: 8 | Z15: =CONCATENATE(L15," ;",ROUND(#REF!,0),"rpm | ",ROUND(F15,1),"° | ",,ROUND(G15,2),"ms ") -> 
B16: 30 | C16: 65.10416667 | D16: 3906 | E16: 42.66939751 | F16: 31.3274 | G16: 0.7967485919 | H16: 796.7485919 | I16: 406 | J16: 0 | K16: 10.15 | L16: 10.15 | Z16: =CONCATENATE(L16," ;",ROUND(#REF!,0),"rpm | ",ROUND(F16,1),"° | ",,ROUND(G16,2),"ms ") -> 
B17: 31 | C17: 63.00403226 | D17: 3780 | E17: 44.09171076 | F17: 30.01168 | G17: 0.881319224 | H17: 881.319224 | I17: 491 | J17: 0 | K17: 12.275 | L17: 12.275 | P17: EEprom data ð | Q17: =CONCATENATE(EEPROM16!O1," for PIC 16F1827") -> INTEL 16HEX format for PIC 16F1827 | S17: =EEPROM16!Q1 -> RAW format | U17: MCH format | Z17: =CONCATENATE(L17," ;",ROUND(#REF!,0),"rpm | ",ROUND(F17,1),"° | ",,ROUND(G17,2),"ms ") -> 
B18: 32 | C18: 61.03515625 | D18: 3662 | E18: 45.51247042 | F18: 28.8151 | G18: 0.9641771345 | H18: 964.1771345 | I18: 574 | J18: 0 | K18: 14.35 | L18: 14.35 | Z18: =CONCATENATE(L18," ;",ROUND(#REF!,0),"rpm | ",ROUND(F18,1),"° | ",,ROUND(G18,2),"ms ") -> 
B19: 33 | C19: 59.18560606 | D19: 3551 | E19: 46.93513564 | F19: 27.71176 | G19: 1.046101568 | H19: 1046.101568 | I19: 656 | J19: 0 | K19: 16.4 | L19: 16.4 | Q19: =EEPROM16!O2 -> :020000040000FA | U19: =DEC2HEX(EEPROM16!F$4,2) -> 00 | Z19: =CONCATENATE(L19," ;",ROUND(#REF!,0),"rpm | ",ROUND(F19,1),"° | ",,ROUND(G19,2),"ms ") -> 
B20: 34 | C20: 57.44485294 | D20: 3446 | E20: 48.3652544 | F20: 26.70166 | G20: 1.126830141 | H20: 1126.830141 | I20: 736 | J20: 0 | K20: 18.4 | L20: 18.4 | Q20: =EEPROM16!O3 -> :020000040001F9 | U20: =DEC2HEX(EEPROM16!G$4,2) -> 00 | Z20: =CONCATENATE(L20," ;",ROUND(#REF!,0),"rpm | ",ROUND(F20,1),"° | ",,ROUND(G20,2),"ms ") -> 
B21: 35 | C21: 55.80357143 | D21: 3348 | E21: 49.78096376 | F21: 25.76926 | G21: 1.20622959 | H21: 1206.22959 | I21: 816 | J21: 0 | K21: 20.4 | L21: 20.4 | Q21: =EEPROM16!O4 -> :10E0000000000000000001000300050008000A00F4 | S21: =EEPROM16!Q4 -> 00 00 00 01 03 05 08 0A | U21: =DEC2HEX(EEPROM16!H$4,2) -> 00 | Z21: =CONCATENATE(L21," ;",ROUND(#REF!,0),"rpm | ",ROUND(F21,1),"° | ",,ROUND(G21,2),"ms ") -> 
B22: 36 | C22: 54.25347222 | D22: 3255 | E22: 51.20327701 | F22: 24.9042 | G22: 1.284987199 | H22: 1284.987199 | I22: 894 | J22: 0 | K22: 22.35 | L22: 22.35 | O22: 2 i | Q22: =EEPROM16!O5 -> :10E010000C000E00100012001400160018001A0066 | S22: =EEPROM16!Q5 -> 0C 0E 10 12 14 16 18 1A | U22: =DEC2HEX(EEPROM16!I$4,2) -> 01 | Z22: =CONCATENATE(L22," ;",ROUND(#REF!,0),"rpm | ",ROUND(F22,1),"° | ",,ROUND(G22,2),"ms ") -> 
B23: 37 | C23: 52.78716216 | D23: 3167 | E23: 52.62603936 | F23: 24.1013 | G23: 1.362946006 | H23: 1362.946006 | I23: 972 | J23: 0 | K23: 24.3 | L23: 24.3 | Q23: =EEPROM16!O6 -> :10E020001C001E001F0021002300250027002900DB | S23: =EEPROM16!Q6 -> 1C 1E 1F 21 23 25 27 29 | U23: =DEC2HEX(EEPROM16!J$4,2) -> 03 | Z23: =CONCATENATE(L23," ;",ROUND(#REF!,0),"rpm | ",ROUND(F23,1),"° | ",,ROUND(G23,2),"ms ") -> 
B24: 38 | C24: 51.39802632 | D24: 3083 | E24: 54.05989837 | F24: 23.3502 | G24: 1.44068548 | H24: 1440.68548 | I24: 1050 | J24: 0 | K24: 26.25 | L24: 26.25 | N24: Number of cylinder | O24: 1 | Q24: =EEPROM16!O7 -> :10E030002B002C002E003000320034003500370055 | S24: =EEPROM16!Q7 -> 2B 2C 2E 30 32 34 35 37 | U24: =DEC2HEX(EEPROM16!K$4,2) -> 05 | Z24: =CONCATENATE(L24," ;",ROUND(#REF!,0),"rpm | ",ROUND(F24,1),"° | ",,ROUND(G24,2),"ms ") -> 
B25: 39 | C25: 50.08012821 | D25: 3004 | E25: 55.48158012 | F25: 22.65608 | G25: 1.517083888 | H25: 1517.083888 | I25: 1127 | J25: 0 | K25: 28.175 | L25: 28.175 | O25: =IF(O26="4 no wasted spark",4,2) -> 2 | Q25: =EEPROM16!O8 -> :10E0400039003B003D003E004000420044004500D3 | S25: =EEPROM16!Q8 -> 39 3B 3D 3E 40 42 44 45 | U25: =DEC2HEX(EEPROM16!L$4,2) -> 08 | Z25: =CONCATENATE(L25," ;",ROUND(#REF!,0),"rpm | ",ROUND(F25,1),"° | ",,ROUND(G25,2),"ms ") -> 
B26: 40 | C26: 48.828125 | D26: 2929 | E26: 56.90224195 | F26: 22.0034 | G26: 1.593069307 | H26: 1593.069307 | I26: 1203 | J26: 0 | K26: 30.075 | L26: 30.075 | N26: Strokes | O26: 4 wasted spark | Q26: =EEPROM16!O9 -> :10E05000470049004B004C004E0050005200530052 | S26: =EEPROM16!Q9 -> 47 49 4B 4C 4E 50 52 53 | U26: =DEC2HEX(EEPROM16!M$4,2) -> 0A | Z26: =CONCATENATE(L26," ;",ROUND(#REF!,0),"rpm | ",ROUND(F26,1),"° | ",,ROUND(G26,2),"ms ") -> 
B27: 41 | C27: 47.63719512 | D27: 2858 | E27: 58.31583858 | F27: 21.39216 | G27: 1.66829018 | H27: 1668.29018 | I27: 1278 | J27: 0 | K27: 31.95 | L27: 31.95 | Q27: =EEPROM16!O10 -> :10E060005500570059005A005C005E0060006100D2 | S27: =EEPROM16!Q10 -> 55 57 59 5A 5C 5E 60 61 | U27: =DEC2HEX(EEPROM16!F$5,2) -> 0C | Z27: =CONCATENATE(L27," ;",ROUND(#REF!,0),"rpm | ",ROUND(F27,1),"° | ",,ROUND(G27,2),"ms ") -> 
B28: 42 | C28: 46.50297619 | D28: 2790 | E28: 59.73715651 | F28: 20.81718 | G28: 1.743298686 | H28: 1743.298686 | I28: 1353 | J28: 0 | K28: 33.825 | L28: 33.825 | Q28: =EEPROM16!O11 -> :10E0700063006500670068006A006C006D006F0054 | S28: =EEPROM16!Q11 -> 63 65 67 68 6A 6C 6D 6F | U28: =DEC2HEX(EEPROM16!G$5,2) -> 0E | Z28: =CONCATENATE(L28," ;",ROUND(#REF!,0),"rpm | ",ROUND(F28,1),"° | ",,ROUND(G28,2),"ms ") -> 
B29: 43 | C29: 45.42151163 | D29: 2725 | E29: 61.16207951 | F29: 20.27328 | G29: 1.818148012 | H29: 1818.148012 | I29: 1428 | J29: 0 | K29: 35.7 | L29: 35.7 | Q29: =EEPROM16!O12 -> :10E08000710073007400760078007A007B007D00D5 | S29: =EEPROM16!Q12 -> 71 73 74 76 78 7A 7B 7D | U29: =DEC2HEX(EEPROM16!H$5,2) -> 10 | Z29: =CONCATENATE(L29," ;",ROUND(#REF!,0),"rpm | ",ROUND(F29,1),"° | ",,ROUND(G29,2),"ms ") -> 
B30: 44 | C30: 44.38920455 | D30: 2663 | E30: 62.58605583 | F30: 19.76564 | G30: 1.892249343 | H30: 1892.249343 | I30: 1502 | J30: 0 | K30: 37.55 | L30: 37.55 | N30: prescaler | O30: 8 | Q30: =EEPROM16!O13 -> :10E090007F008000820084008600870089008B0057 | S30: =EEPROM16!Q13 -> 7F 80 82 84 86 87 89 8B | U30: =DEC2HEX(EEPROM16!I$5,2) -> 12 | Z30: =CONCATENATE(L30," ;",ROUND(#REF!,0),"rpm | ",ROUND(F30,1),"° | ",,ROUND(G30,2),"ms ") -> 
B31: 45 | C31: 43.40277778 | D31: 2604 | E31: 64.00409626 | F31: 19.2839 | G31: 1.965956221 | H31: 1965.956221 | I31: 1575 | J31: 0 | K31: 39.375 | L31: 39.375 | Q31: =EEPROM16!O14 -> :10E0A0008C008E00900092009300950097009800D9 | S31: =EEPROM16!Q14 -> 8C 8E 90 92 93 95 97 98 | U31: =DEC2HEX(EEPROM16!J$5,2) -> 14 | Z31: =CONCATENATE(L31," ;",ROUND(#REF!,0),"rpm | ",ROUND(F31,1),"° | ",,ROUND(G31,2),"ms ") -> 
B32: 46 | C32: 42.45923913 | D32: 2547 | E32: 65.4364612 | F32: 18.82806 | G32: 2.039781442 | H32: 2039.781442 | I32: 1649 | J32: 0 | K32: 41.225 | L32: 41.225 | N32: output width | O32: 500 | P32: us | Q32: =EEPROM16!O15 -> :10E0B0009A009C009D009F00A100A300A400000002 | S32: =EEPROM16!Q15 -> 9A 9C 9D 9F A1 A3 A4 00 | U32: =DEC2HEX(EEPROM16!K$5,2) -> 16 | Z32: =CONCATENATE(L32," ;",ROUND(#REF!,0),"rpm | ",ROUND(F32,1),"° | ",,ROUND(G32,2),"ms ") -> 
B33: 47 | C33: 41.55585106 | D33: 2493 | E33: 66.85385747 | F33: 18.39294 | G33: 2.113053884 | H33: 2113.053884 | I33: 1723 | J33: 0 | K33: 43.075 | L33: 43.075 | Q33: =EEPROM16!O16 -> :10E0C0000000000000000000000000000000000050 | S33: =EEPROM16!Q16 -> 00 00 00 00 00 00 00 00 | U33: =DEC2HEX(EEPROM16!L$5,2) -> 18 | Z33: =CONCATENATE(L33," ;",ROUND(#REF!,0),"rpm | ",ROUND(F33,1),"° | ",,ROUND(G33,2),"ms ") -> 
B34: 48 | C34: 40.69010417 | D34: 2441 | E34: 68.27802813 | F34: 17.98372 | G34: 2.186008466 | H34: 2186.008466 | I34: 1796 | J34: 0 | K34: 44.9 | L34: 44.9 | Q34: =EEPROM16!O17 -> :10E0D000000000000000000000000000000001003F | S34: =EEPROM16!Q17 -> 00 00 00 00 00 00 00 01 | U34: =DEC2HEX(EEPROM16!M$5,2) -> 1A | Z34: =CONCATENATE(L34," ;",ROUND(#REF!,0),"rpm | ",ROUND(F34,1),"° | ",,ROUND(G34,2),"ms ") -> 
B35: 49 | C35: 39.85969388 | D35: 2391 | E35: 69.70584135 | F35: 17.59522 | G35: 2.258802454 | H35: 2258.802454 | I35: 1868 | J35: 0 | K35: 46.7 | L35: 46.7 | Q35: =EEPROM16!O18 -> :10E0E0004F0007000B003200320002000100140054 | S35: =EEPROM16!Q18 -> 4F 07 0B 32 32 02 01 14 | U35: =DEC2HEX(EEPROM16!F$6,2) -> 1C | Z35: =CONCATENATE(L35," ;",ROUND(#REF!,0),"rpm | ",ROUND(F35,1),"° | ",,ROUND(G35,2),"ms ") -> 
B36: 50 | C36: 39.0625 | D36: 2343 | E36: 71.13387395 | F36: 17.22744 | G36: 2.331239152 | H36: 2331.239152 | I36: 1941 | J36: 0 | K36: 48.525 | L36: 48.525 | Q36: =EEPROM16!O19 -> :10E0F00012000000010008000E0028001700750043 | S36: =EEPROM16!Q19 -> 12 00 01 08 0E 28 17 75 | U36: =DEC2HEX(EEPROM16!G$6,2) -> 1E | Z36: =CONCATENATE(L36," ;",ROUND(#REF!,0),"rpm | ",ROUND(F36,1),"° | ",,ROUND(G36,2),"ms ") -> 
B37: 51 | C37: 38.29656863 | D37: 2297 | E37: 72.55840952 | F37: 16.8752 | G37: 2.403482804 | H37: 2403.482804 | I37: 2013 | J37: 0 | K37: 50.325 | L37: 50.325 | Q37: =EEPROM16!O20 -> :10E10000FF00FF00FF00FF00FF00FF00FF00FF0017 | S37: =EEPROM16!Q20 -> FF FF FF FF FF FF FF FF | U37: =DEC2HEX(EEPROM16!H$6,2) -> 1F | Z37: =CONCATENATE(L37," ;",ROUND(#REF!,0),"rpm | ",ROUND(F37,1),"° | ",,ROUND(G37,2),"ms ") -> 
B38: 52 | C38: 37.56009615 | D38: 2253 | E38: 73.97544015 | F38: 16.5385 | G38: 2.475329191 | H38: 2475.329191 | I38: 2085 | J38: 0 | K38: 52.125 | L38: 52.125 | N38: Led blink at startup | O38: yes | P38: =IF(O38="yes",1,0) -> 1 | Q38: =EEPROM16!O21 -> :10E11000FF00FF00FF00FF00FF00FF00FF00FF0007 | S38: =EEPROM16!Q21 -> FF FF FF FF FF FF FF FF | U38: =DEC2HEX(EEPROM16!I$6,2) -> 21 | Z38: =CONCATENATE(L38," ;",ROUND(#REF!,0),"rpm | ",ROUND(F38,1),"° | ",,ROUND(G38,2),"ms ") -> 
B39: 53 | C39: 36.85141509 | D39: 2211 | E39: 75.3806724 | F39: 16.21734 | G39: 2.546559626 | H39: 2546.559626 | I39: 2156 | J39: 0 | K39: 53.9 | L39: 53.9 | Q39: =EEPROM16!O22 -> :10E12000FF00FF00FF00FF00FF00FF00FF00FF00F7 | S39: =EEPROM16!Q22 -> FF FF FF FF FF FF FF FF | U39: =DEC2HEX(EEPROM16!J$6,2) -> 23 | Z39: =CONCATENATE(L39," ;",ROUND(#REF!,0),"rpm | ",ROUND(F39,1),"° | ",,ROUND(G39,2),"ms ") -> 
B40: 54 | C40: 36.16898148 | D40: 2170 | E40: 76.80491551 | F40: 15.91172 | G40: 2.618147465 | H40: 2618.147465 | I40: 2228 | J40: 0 | K40: 55.7 | L40: 55.7 | N40: reboot en bcl avec output:1000us | Q40: =EEPROM16!O23 -> :10E13000FF00FF00FF00FF00FF00FF00FF00FF00E7 | S40: =EEPROM16!Q23 -> FF FF FF FF FF FF FF FF | U40: =DEC2HEX(EEPROM16!K$6,2) -> 25 | Z40: =CONCATENATE(L40," ;",ROUND(#REF!,0),"rpm | ",ROUND(F40,1),"° | ",,ROUND(G40,2),"ms ") -> 
B41: 55 | C41: 35.51136364 | D41: 2130 | E41: =((1000*1000*60)/($O$24*$D41))/360 -> 78.24726135 | F41: 15.61646 | G41: =(E41*($F$5-F41))/1000 -> 2.69041784 | H41: =E41*($F$5-F41) -> 2690.41784 | I41: 2300 | J41: 0 | K41: 57.5 | L41: 57.5 | N41: si max rpm < 1000us | Q41: =EEPROM16!O24 -> :10E14000FF00FF00FF00FF00FF00FF00FF00FF00D7 | S41: =EEPROM16!Q24 -> FF FF FF FF FF FF FF FF | U41: =DEC2HEX(EEPROM16!L$6,2) -> 27 | Z41: =CONCATENATE(L41," ;",ROUND(#REF!,0),"rpm | ",ROUND(F41,1),"° | ",,ROUND(G41,2),"ms ") -> 
B42: 56 | C42: 34.87723214 | D42: 2092 | E42: 79.66857871 | F42: 15.33674 | G42: 2.761572658 | H42: 2761.572658 | I42: 2371 | J42: 0 | K42: 59.275 | L42: 59.275 | Q42: =EEPROM16!O25 -> :10E15000FF00FF00FF00FF00FF00FF00FF00FF00C7 | S42: =EEPROM16!Q25 -> FF FF FF FF FF FF FF FF | U42: =DEC2HEX(EEPROM16!M$6,2) -> 29 | Z42: =CONCATENATE(L42," ;",ROUND(#REF!,0),"rpm | ",ROUND(F42,1),"° | ",,ROUND(G42,2),"ms ") -> 
B43: 57 | C43: 34.26535088 | D43: 2055 | E43: 81.10300081 | F43: 15.06738 | G43: 2.833140308 | H43: 2833.140308 | I43: 2443 | J43: 0 | K43: 61.075 | L43: 61.075 | Q43: =EEPROM16!O26 -> :10E16000FF00FF00FF00FF00FF00FF00FF00FF00B7 | S43: =EEPROM16!Q26 -> FF FF FF FF FF FF FF FF | U43: =DEC2HEX(EEPROM16!F$7,2) -> 2B | Z43: =CONCATENATE(L43," ;",ROUND(#REF!,0),"rpm | ",ROUND(F43,1),"° | ",,ROUND(G43,2),"ms ") -> 
B44: 58 | C44: 33.67456897 | D44: 2020 | E44: 82.50825083 | F44: 14.80838 | G44: 2.90359901 | H44: 2903.59901 | I44: 2513 | J44: 0 | K44: 62.825 | L44: 62.825 | Q44: =EEPROM16!O27 -> :10E17000FF00FF00FF00FF00FF00FF00FF00FF00A7 | S44: =EEPROM16!Q27 -> FF FF FF FF FF FF FF FF | U44: =DEC2HEX(EEPROM16!G$7,2) -> 2C | Z44: =CONCATENATE(L44," ;",ROUND(#REF!,0),"rpm | ",ROUND(F44,1),"° | ",,ROUND(G44,2),"ms ") -> 
B45: 59 | C45: 33.10381356 | D45: 1986 | E45: 83.92077878 | F45: 14.55974 | G45: 2.97417422 | H45: 2974.17422 | I45: 2584 | J45: 0 | K45: 64.6 | L45: 64.6 | Q45: =EEPROM16!O28 -> :10E18000FF00FF00FF00FF00FF00FF00FF00FF0097 | S45: =EEPROM16!Q28 -> FF FF FF FF FF FF FF FF | U45: =DEC2HEX(EEPROM16!H$7,2) -> 2E | Z45: =CONCATENATE(L45," ;",ROUND(#REF!,0),"rpm | ",ROUND(F45,1),"° | ",,ROUND(G45,2),"ms ") -> 
B46: 60 | C46: 32.55208333 | D46: 1953 | E46: 85.33879502 | F46: 14.32146 | G46: 3.044763612 | H46: 3044.763612 | I46: 2654 | J46: 0 | K46: 66.35 | L46: 66.35 | Q46: =EEPROM16!O29 -> :10E19000FF00FF00FF00FF00FF00FF00FF00FF0087 | S46: =EEPROM16!Q29 -> FF FF FF FF FF FF FF FF | U46: =DEC2HEX(EEPROM16!I$7,2) -> 30 | Z46: =CONCATENATE(L46," ;",ROUND(#REF!,0),"rpm | ",ROUND(F46,1),"° | ",,ROUND(G46,2),"ms ") -> 
B47: 61 | C47: 32.01844262 | D47: 1921 | E47: 86.76036786 | F47: 14.09354 | G47: 3.115257678 | H47: 3115.257678 | I47: 2725 | J47: 0 | K47: 68.125 | L47: 68.125 | Q47: =EEPROM16!O30 -> :10E1A000FF00FF00FF00FF00FF00FF00FF00FF0077 | S47: =EEPROM16!Q30 -> FF FF FF FF FF FF FF FF | U47: =DEC2HEX(EEPROM16!J$7,2) -> 32 | Z47: =CONCATENATE(L47," ;",ROUND(#REF!,0),"rpm | ",ROUND(F47,1),"° | ",,ROUND(G47,2),"ms ") -> 
B48: 62 | C48: 31.50201613 | D48: 1890 | E48: 88.18342152 | F48: 13.87598 | G48: 3.185539683 | H48: 3185.539683 | I48: 2795 | J48: 0 | K48: 69.875 | L48: 69.875 | Q48: =EEPROM16!O31 -> :10E1B000FF00FF00FF00FF00FF00FF00FF00FF0067 | S48: =EEPROM16!Q31 -> FF FF FF FF FF FF FF FF | U48: =DEC2HEX(EEPROM16!K$7,2) -> 34 | Z48: =CONCATENATE(L48," ;",ROUND(#REF!,0),"rpm | ",ROUND(F48,1),"° | ",,ROUND(G48,2),"ms ") -> 
B49: 63 | C49: 31.00198413 | D49: 1860 | E49: 89.60573477 | F49: 13.6636 | G49: 3.255949821 | H49: 3255.949821 | I49: 2865 | J49: 0 | K49: 71.625 | L49: 71.625 | Q49: =EEPROM16!O32 -> :10E1C000FF00FF00FF00FF00FF00FF00FF00FF0057 | S49: =EEPROM16!Q32 -> FF FF FF FF FF FF FF FF | U49: =DEC2HEX(EEPROM16!L$7,2) -> 35 | Z49: =CONCATENATE(L49," ;",ROUND(#REF!,0),"rpm | ",ROUND(F49,1),"° | ",,ROUND(G49,2),"ms ") -> 
B50: 64 | C50: 30.51757812 | D50: 1831 | E50: 91.02494083 | F50: 13.4564 | G50: 3.326379028 | H50: 3326.379028 | I50: 2936 | J50: 0 | K50: 73.4 | L50: 73.4 | Q50: =EEPROM16!O33 -> :10E1D000FF00FF00FF00FF00FF00FF00FF00FF0047 | S50: =EEPROM16!Q33 -> FF FF FF FF FF FF FF FF | U50: =DEC2HEX(EEPROM16!M$7,2) -> 37 | Z50: =CONCATENATE(L50," ;",ROUND(#REF!,0),"rpm | ",ROUND(F50,1),"° | ",,ROUND(G50,2),"ms ") -> 
B51: 65 | C51: 30.04807692 | D51: 1802 | E51: 92.48982612 | F51: 13.25956 | G51: 3.398116907 | H51: 3398.116907 | I51: 3008 | J51: 0 | K51: 75.2 | L51: 75.2 | Q51: =EEPROM16!O34 -> :10E1E000FF00FF00FF00FF00FF00FF00FF00FF0037 | S51: =EEPROM16!Q34 -> FF FF FF FF FF FF FF FF | U51: =DEC2HEX(EEPROM16!F$8,2) -> 39 | Z51: =CONCATENATE(L51," ;",ROUND(#REF!,0),"rpm | ",ROUND(F51,1),"° | ",,ROUND(G51,2),"ms ") -> 
B52: 66 | C52: 29.59280303 | D52: 1775 | E52: 93.89671362 | F52: 13.0679 | G52: 3.467802817 | H52: 3467.802817 | I52: 3077 | J52: 0 | K52: 76.925 | L52: 76.925 | Q52: =EEPROM16!O35 -> :10E1F000FF00FF00FF00FF00FF00FF00FF00FF0027 | S52: =EEPROM16!Q35 -> FF FF FF FF FF FF FF FF | U52: =DEC2HEX(EEPROM16!G$8,2) -> 3B | Z52: =CONCATENATE(L52," ;",ROUND(#REF!,0),"rpm | ",ROUND(F52,1),"° | ",,ROUND(G52,2),"ms ") -> 
B53: 67 | C53: 29.1511194 | D53: 1749 | E53: 95.29254812 | F53: 12.8866 | G53: 3.536630455 | H53: 3536.630455 | I53: 3146 | J53: 0 | K53: 78.65 | L53: 78.65 | Q53: =EEPROM16!O36 -> :00000001FF | U53: =DEC2HEX(EEPROM16!H$8,2) -> 3D | Z53: =CONCATENATE(L53," ;",ROUND(#REF!,0),"rpm | ",ROUND(F53,1),"° | ",,ROUND(G53,2),"ms ") -> 
B54: 68 | C54: 28.72242647 | D54: 1723 | E54: 96.7305088 | F54: 12.71048 | G54: 3.607034243 | H54: 3607.034243 | I54: 3217 | J54: 0 | K54: 80.425 | L54: 80.425 | U54: =DEC2HEX(EEPROM16!I$8,2) -> 3E | Z54: =CONCATENATE(L54," ;",ROUND(#REF!,0),"rpm | ",ROUND(F54,1),"° | ",,ROUND(G54,2),"ms ") -> 
B55: 69 | C55: 28.30615942 | D55: 1698 | E55: 98.15469179 | F55: 12.53954 | G55: 3.676919906 | H55: 3676.919906 | I55: 3286 | J55: 0 | K55: 82.15 | L55: 82.15 | U55: =DEC2HEX(EEPROM16!J$8,2) -> 40 | Z55: =CONCATENATE(L55," ;",ROUND(#REF!,0),"rpm | ",ROUND(F55,1),"° | ",,ROUND(G55,2),"ms ") -> 
B56: 70 | C56: 27.90178571 | D56: 1674 | E56: 99.56192752 | F56: 12.37378 | G56: 3.746138988 | H56: 3746.138988 | I56: 3356 | J56: 0 | K56: 83.9 | L56: 83.9 | U56: =DEC2HEX(EEPROM16!K$8,2) -> 42 | Z56: =CONCATENATE(L56," ;",ROUND(#REF!,0),"rpm | ",ROUND(F56,1),"° | ",,ROUND(G56,2),"ms ") -> 
B57: 71 | C57: 27.50880282 | D57: 1650 | E57: 101.010101 | F57: 12.2132 | G57: 3.816848485 | H57: 3816.848485 | I57: 3426 | J57: 0 | K57: 85.65 | L57: 85.65 | U57: =DEC2HEX(EEPROM16!L$8,2) -> 44 | Z57: =CONCATENATE(L57," ;",ROUND(#REF!,0),"rpm | ",ROUND(F57,1),"° | ",,ROUND(G57,2),"ms ") -> 
B58: 72 | C58: 27.12673611 | D58: 1627 | E58: 102.438025 | F58: 12.0578 | G58: 3.886724032 | H58: 3886.724032 | I58: 3496 | J58: 0 | K58: 87.4 | L58: 87.4 | U58: =DEC2HEX(EEPROM16!M$8,2) -> 45 | Z58: =CONCATENATE(L58," ;",ROUND(#REF!,0),"rpm | ",ROUND(F58,1),"° | ",,ROUND(G58,2),"ms ") -> 
B59: 73 | C59: 26.75513699 | D59: 1605 | E59: 103.8421599 | F59: 11.90758 | G59: 3.955599169 | H59: 3955.599169 | I59: 3565 | J59: 0 | K59: 89.125 | L59: 89.125 | U59: =DEC2HEX(EEPROM16!F$9,2) -> 47 | Z59: =CONCATENATE(L59," ;",ROUND(#REF!,0),"rpm | ",ROUND(F59,1),"° | ",,ROUND(G59,2),"ms ") -> 
B60: 74 | C60: 26.39358108 | D60: 1583 | E60: 105.2853232 | F60: 11.75736 | G60: 4.026388713 | H60: 4026.388713 | I60: 3636 | J60: 0 | K60: 90.9 | L60: 90.9 | U60: =DEC2HEX(EEPROM16!G$9,2) -> 49 | Z60: =CONCATENATE(L60," ;",ROUND(#REF!,0),"rpm | ",ROUND(F60,1),"° | ",,ROUND(G60,2),"ms ") -> 
B61: 75 | C61: 26.04166667 | D61: 1562 | E61: 106.7008109 | F61: 11.6175 | G61: 4.095443875 | H61: 4095.443875 | I61: 3705 | J61: 0 | K61: 92.625 | L61: 92.625 | U61: =DEC2HEX(EEPROM16!H$9,2) -> 4B | Z61: =CONCATENATE(L61," ;",ROUND(#REF!,0),"rpm | ",ROUND(F61,1),"° | ",,ROUND(G61,2),"ms ") -> 
B62: 76 | C62: 25.69901316 | D62: 1541 | E62: 108.1548778 | F62: 11.48282 | G62: 4.165820896 | H62: 4165.820896 | I62: 3775 | J62: 0 | K62: 94.375 | L62: 94.375 | U62: =DEC2HEX(EEPROM16!I$9,2) -> 4C | Z62: =CONCATENATE(L62," ;",ROUND(#REF!,0),"rpm | ",ROUND(F62,1),"° | ",,ROUND(G62,2),"ms ") -> 
B63: 77 | C63: 25.36525974 | D63: 1521 | E63: 109.5770327 | F63: 11.34814 | G63: 4.235356125 | H63: 4235.356125 | I63: 3845 | J63: 0 | K63: 96.125 | L63: 96.125 | U63: =DEC2HEX(EEPROM16!J$9,2) -> 4E | Z63: =CONCATENATE(L63," ;",ROUND(#REF!,0),"rpm | ",ROUND(F63,1),"° | ",,ROUND(G63,2),"ms ") -> 
B64: 78 | C64: 25.0400641 | D64: 1502 | E64: 110.9631602 | F64: 11.21864 | G64: 4.303302264 | H64: 4303.302264 | I64: 3913 | J64: 0 | K64: 97.825 | L64: 97.825 | U64: =DEC2HEX(EEPROM16!K$9,2) -> 50 | Z64: =CONCATENATE(L64," ;",ROUND(#REF!,0),"rpm | ",ROUND(F64,1),"° | ",,ROUND(G64,2),"ms ") -> 
B65: 79 | C65: 24.72310127 | D65: 1483 | E65: 112.3848056 | F65: 11.09432 | G65: 4.372407283 | H65: 4372.407283 | I65: 3982 | J65: 0 | K65: 99.55 | L65: 99.55 | U65: =DEC2HEX(EEPROM16!L$9,2) -> 52 | Z65: =CONCATENATE(L65," ;",ROUND(#REF!,0),"rpm | ",ROUND(F65,1),"° | ",,ROUND(G65,2),"ms ") -> 
B66: 80 | C66: 24.4140625 | D66: 1464 | E66: 113.8433515 | F66: 10.97 | G66: 4.443306011 | H66: 4443.306011 | I66: 4053 | J66: 0 | K66: 101.325 | L66: 101.325 | U66: =DEC2HEX(EEPROM16!M$9,2) -> 53 | Z66: =CONCATENATE(L66," ;",ROUND(#REF!,0),"rpm | ",ROUND(F66,1),"° | ",,ROUND(G66,2),"ms ") -> 
B67: 81 | C67: 24.11265432 | D67: 1446 | E67: 115.2604887 | F67: 10.85086 | G67: 4.512349009 | H67: 4512.349009 | I67: 4122 | J67: 0 | K67: 103.05 | L67: 103.05 | U67: =DEC2HEX(EEPROM16!F$10,2) -> 55 | Z67: =CONCATENATE(L67," ;",ROUND(#REF!,0),"rpm | ",ROUND(F67,1),"° | ",,ROUND(G67,2),"ms ") -> 
B68: 82 | C68: 23.81859756 | D68: 1429 | E68: 116.6316772 | F68: 10.7369 | G68: 4.579321204 | H68: 4579.321204 | I68: 4189 | J68: 0 | K68: 104.725 | L68: 104.725 | U68: =DEC2HEX(EEPROM16!G$10,2) -> 57 | Z68: =CONCATENATE(L68," ;",ROUND(#REF!,0),"rpm | ",ROUND(F68,1),"° | ",,ROUND(G68,2),"ms ") -> 
B69: 83 | C69: 23.53162651 | D69: 1411 | E69: 118.119537 | F69: 10.62294 | G69: 4.651200094 | H69: 4651.200094 | I69: 4261 | J69: 0 | K69: 106.525 | L69: 106.525 | U69: =DEC2HEX(EEPROM16!H$10,2) -> 59 | Z69: =CONCATENATE(L69," ;",ROUND(#REF!,0),"rpm | ",ROUND(F69,1),"° | ",,ROUND(G69,2),"ms ") -> 
B70: 84 | C70: 23.2514881 | D70: 1395 | E70: 119.474313 | F70: 10.51416 | G70: 4.717543608 | H70: 4717.543608 | I70: 4327 | J70: 0 | K70: 108.175 | L70: 108.175 | U70: =DEC2HEX(EEPROM16!I$10,2) -> 5A | Z70: =CONCATENATE(L70," ;",ROUND(#REF!,0),"rpm | ",ROUND(F70,1),"° | ",,ROUND(G70,2),"ms ") -> 
B71: 85 | C71: 22.97794118 | D71: 1378 | E71: 120.9482342 | F71: 10.40538 | G71: 4.788899371 | H71: 4788.899371 | I71: 4398 | J71: 0 | K71: 109.95 | L71: 109.95 | U71: =DEC2HEX(EEPROM16!J$10,2) -> 5C | Z71: =CONCATENATE(L71," ;",ROUND(#REF!,0),"rpm | ",ROUND(F71,1),"° | ",,ROUND(G71,2),"ms ") -> 
B72: 86 | C72: 22.71075581 | D72: 1362 | E72: 122.3690651 | F72: 10.30178 | G72: 4.857834068 | H72: 4857.834068 | I72: 4467 | J72: 0 | K72: 111.675 | L72: 111.675 | U72: =DEC2HEX(EEPROM16!K$10,2) -> 5E | Z72: =CONCATENATE(L72," ;",ROUND(#REF!,0),"rpm | ",ROUND(F72,1),"° | ",,ROUND(G72,2),"ms ") -> 
B73: 87 | C73: 22.44971264 | D73: 1346 | E73: =((1000*1000*60)/($O$24*$D73))/360 -> 123.8236751 | F73: 10.20336 | G73: =(E73*($F$5-F73))/1000 -> 4.927766221 | H73: =E73*($F$5-F73) -> 4927.766221 | I73: =IF($H73>$I$5,INT($H73-$I$5),"0") -> 4537 | J73: 0 | K73: 113.425 | L73: 113.425 | U73: =DEC2HEX(EEPROM16!L$10,2) -> 60 | Z73: =CONCATENATE(L73," ;",ROUND(#REF!,0),"rpm | ",ROUND(F73,1),"° | ",,ROUND(G73,2),"ms ") -> 
B74: 88 | C74: =IFERROR(1000000/(B74*256*($O$30/$C$4)),"") -> 22.19460227 | D74: =INT(60*C74*$O$25/2*$O$24) -> 1331 | E74: 125.2191335 | F74: 10.10494 | G74: 4.995624843 | H74: 4995.624843 | I74: 4605 | J74: 0 | K74: =IF(($I74/$L$5)-$J74>255,255,IF($I74>0.01,INT($I74-$J74)/$L$5,1)) -> 115.125 | L74: =IF($K74 > 0,$K74,0) -> 115.125 | M74: =IF($I74/$L$5>255,CONCATENATE("WARNING: Timing will be more then ",F74,"°"),"") ->  | U74: =DEC2HEX(EEPROM16!M$10,2) -> 61 | Z74: =CONCATENATE(L74," ;",ROUND(#REF!,0),"rpm | ",ROUND(F74,1),"° | ",,ROUND(G74,2),"ms ") -> 
A75: =IF($B75>255,CONCATENATE("ERROR: Timer1H too large"),"") ->  | B75: =IF((B74+1)<(95+$B$9),B74+1,"- End -") -> 89 | C75: 21.94522472 | D75: 1316 | E75: 126.6464032 | F75: 10.00652 | G75: 5.065030395 | H75: 5065.030395 | I75: 4675 | J75: 0 | K75: 116.875 | L75: 116.875 | U75: =DEC2HEX(EEPROM16!F$11,2) -> 63 | Z75: =CONCATENATE(L75," ;",ROUND(#REF!,0),"rpm | ",ROUND(F75,1),"° | ",,ROUND(G75,2),"ms ") -> 
B76: 90 | C76: 21.70138889 | D76: 1302 | E76: 128.0081925 | F76: 9.91328 | G76: 5.131428571 | H76: 5131.428571 | I76: 4741 | J76: 0 | K76: 118.525 | L76: 118.525 | U76: =DEC2HEX(EEPROM16!G$11,2) -> 65 | Z76: =CONCATENATE(L76," ;",ROUND(#REF!,0),"rpm | ",ROUND(F76,1),"° | ",,ROUND(G76,2),"ms ") -> 
B77: 91 | C77: 21.46291209 | D77: 1287 | E77: 129.5001295 | F77: 9.82522 | G77: 5.202639213 | H77: 5202.639213 | I77: 4812 | J77: 0 | K77: 120.3 | L77: 120.3 | U77: =DEC2HEX(EEPROM16!H$11,2) -> 67 | Z77: =CONCATENATE(L77," ;",ROUND(#REF!,0),"rpm | ",ROUND(F77,1),"° | ",,ROUND(G77,2),"ms ") -> 
B78: 92 | C78: 21.22961957 | D78: 1273 | E78: 130.9243257 | F78: 9.73198 | G78: 5.272063367 | H78: 5272.063367 | I78: 4882 | J78: 0 | K78: 122.05 | L78: 122.05 | U78: =DEC2HEX(EEPROM16!I$11,2) -> 68 | Z78: =CONCATENATE(L78," ;",ROUND(#REF!,0),"rpm | ",ROUND(F78,1),"° | ",,ROUND(G78,2),"ms ") -> 
B79: 93 | C79: 21.00134409 | D79: 1260 | E79: 132.2751323 | F79: 9.6491 | G79: 5.337420635 | H79: 5337.420635 | I79: 4947 | J79: 0 | K79: 123.675 | L79: 123.675 | U79: =DEC2HEX(EEPROM16!J$11,2) -> 6A | Z79: =CONCATENATE(L79," ;",ROUND(#REF!,0),"rpm | ",ROUND(F79,1),"° | ",,ROUND(G79,2),"ms ") -> 
B80: 94 | C80: 20.77792553 | D80: 1246 | E80: 133.7613697 | F80: 9.56104 | G80: 5.40917068 | H80: 5409.17068 | I80: 5019 | J80: 0 | K80: 125.475 | L80: 125.475 | U80: =DEC2HEX(EEPROM16!K$11,2) -> 6C | Z80: =CONCATENATE(L80," ;",ROUND(#REF!,0),"rpm | ",ROUND(F80,1),"° | ",,ROUND(G80,2),"ms ") -> 
B81: 95 | C81: 20.55921053 | D81: 1233 | E81: 135.171668 | F81: 9.47816 | G81: 5.477404704 | H81: 5477.404704 | I81: 5087 | J81: 0 | K81: 127.175 | L81: 127.175 | U81: =DEC2HEX(EEPROM16!L$11,2) -> 6D | Z81: =CONCATENATE(L81," ;",ROUND(#REF!,0),"rpm | ",ROUND(F81,1),"° | ",,ROUND(G81,2),"ms ") -> 
B82: 96 | C82: 20.34505208 | D82: 1220 | E82: 136.6120219 | F82: 9.39528 | G82: 5.547092896 | H82: 5547.092896 | I82: 5157 | J82: 0 | K82: 128.925 | L82: 128.925 | U82: =DEC2HEX(EEPROM16!M$11,2) -> 6F | Z82: =CONCATENATE(L82," ;",ROUND(#REF!,0),"rpm | ",ROUND(F82,1),"° | ",,ROUND(G82,2),"ms ") -> 
B83: 97 | C83: 20.13530928 | D83: 1208 | E83: 137.9690949 | F83: 9.31758 | G83: 5.612916667 | H83: 5612.916667 | I83: 5222 | J83: 0 | K83: 130.55 | L83: 130.55 | U83: =DEC2HEX(EEPROM16!F$12,2) -> 71 | Z83: =CONCATENATE(L83," ;",ROUND(#REF!,0),"rpm | ",ROUND(F83,1),"° | ",,ROUND(G83,2),"ms ") -> 
B84: 98 | C84: 19.92984694 | D84: 1195 | E84: 139.4700139 | F84: 9.23988 | G84: 5.684814505 | H84: 5684.814505 | I84: 5294 | J84: 0 | K84: 132.35 | L84: 132.35 | U84: =DEC2HEX(EEPROM16!G$12,2) -> 73 | Z84: =CONCATENATE(L84," ;",ROUND(#REF!,0),"rpm | ",ROUND(F84,1),"° | ",,ROUND(G84,2),"ms ") -> 
B85: 99 | C85: 19.72853535 | D85: 1183 | E85: 140.8847563 | F85: 9.16736 | G85: 5.752696534 | H85: 5752.696534 | I85: 5362 | J85: 0 | K85: 134.05 | L85: 134.05 | U85: =DEC2HEX(EEPROM16!H$12,2) -> 74 | Z85: =CONCATENATE(L85," ;",ROUND(#REF!,0),"rpm | ",ROUND(F85,1),"° | ",,ROUND(G85,2),"ms ") -> 
B86: 100 | C86: 19.53125 | D86: 1171 | E86: 142.3284942 | F86: 9.08966 | G86: 5.822707088 | H86: 5822.707088 | I86: 5432 | J86: 0 | K86: 135.8 | L86: 135.8 | U86: =DEC2HEX(EEPROM16!I$12,2) -> 76 | Z86: =CONCATENATE(L86," ;",ROUND(#REF!,0),"rpm | ",ROUND(F86,1),"° | ",,ROUND(G86,2),"ms ") -> 
B87: 101 | C87: 19.33787129 | D87: 1160 | E87: 143.6781609 | F87: 9.01714 | G87: 5.888341954 | H87: 5888.341954 | I87: 5498 | J87: 0 | K87: 137.45 | L87: 137.45 | U87: =DEC2HEX(EEPROM16!J$12,2) -> 78 | Z87: =CONCATENATE(L87," ;",ROUND(#REF!,0),"rpm | ",ROUND(F87,1),"° | ",,ROUND(G87,2),"ms ") -> 
B88: 102 | C88: 19.14828431 | D88: 1148 | E88: 145.1800232 | F88: 8.9498 | G88: 5.95966899 | H88: 5959.66899 | I88: 5569 | J88: 0 | K88: 139.225 | L88: 139.225 | U88: =DEC2HEX(EEPROM16!K$12,2) -> 7A | Z88: =CONCATENATE(L88," ;",ROUND(#REF!,0),"rpm | ",ROUND(F88,1),"° | ",,ROUND(G88,2),"ms ") -> 
B89: 103 | C89: 18.96237864 | D89: 1137 | E89: 146.5845793 | F89: 8.87728 | G89: 6.027956611 | H89: 6027.956611 | I89: 5637 | J89: 0 | K89: 140.925 | L89: 140.925 | U89: =DEC2HEX(EEPROM16!L$12,2) -> 7B | Z89: =CONCATENATE(L89," ;",ROUND(#REF!,0),"rpm | ",ROUND(F89,1),"° | ",,ROUND(G89,2),"ms ") -> 
B90: 104 | C90: 18.78004808 | D90: 1126 | E90: 148.0165779 | F90: 8.80994 | G90: 6.096811723 | H90: 6096.811723 | I90: 5706 | J90: 0 | K90: 142.65 | L90: 142.65 | U90: =DEC2HEX(EEPROM16!M$12,2) -> 7D | Z90: =CONCATENATE(L90," ;",ROUND(#REF!,0),"rpm | ",ROUND(F90,1),"° | ",,ROUND(G90,2),"ms ") -> 
B91: 105 | C91: 18.60119048 | D91: 1116 | E91: 149.3428913 | F91: 8.7426 | G91: 6.161499403 | H91: 6161.499403 | I91: 5771 | J91: 0 | K91: 144.275 | L91: 144.275 | U91: =DEC2HEX(EEPROM16!F$13,2) -> 7F | Z91: =CONCATENATE(L91," ;",ROUND(#REF!,0),"rpm | ",ROUND(F91,1),"° | ",,ROUND(G91,2),"ms ") -> 
B92: 106 | C92: 18.42570755 | D92: 1105 | E92: 150.8295626 | F92: 8.68044 | G92: 6.232211161 | H92: 6232.211161 | I92: 5842 | J92: 0 | K92: 146.05 | L92: 146.05 | U92: =DEC2HEX(EEPROM16!G$13,2) -> 80 | Z92: =CONCATENATE(L92," ;",ROUND(#REF!,0),"rpm | ",ROUND(F92,1),"° | ",,ROUND(G92,2),"ms ") -> 
B93: 107 | C93: 18.25350467 | D93: 1095 | E93: 152.2070015 | F93: 8.6131 | G93: 6.299375951 | H93: 6299.375951 | I93: 5909 | J93: 0 | K93: 147.725 | L93: 147.725 | U93: =DEC2HEX(EEPROM16!H$13,2) -> 82 | Z93: =CONCATENATE(L93," ;",ROUND(#REF!,0),"rpm | ",ROUND(F93,1),"° | ",,ROUND(G93,2),"ms ") -> 
B94: 108 | C94: 18.08449074 | D94: 1085 | E94: 153.609831 | F94: 8.55094 | G94: 6.366983103 | H94: 6366.983103 | I94: 5976 | J94: 0 | K94: 149.4 | L94: 149.4 | U94: =DEC2HEX(EEPROM16!I$13,2) -> 84 | Z94: =CONCATENATE(L94," ;",ROUND(#REF!,0),"rpm | ",ROUND(F94,1),"° | ",,ROUND(G94,2),"ms ") -> 
B95: 109 | C95: 17.91857798 | D95: 1075 | E95: 155.0387597 | F95: 8.48878 | G95: 6.435848062 | H95: 6435.848062 | I95: 6045 | J95: 0 | K95: 151.125 | L95: 151.125 | U95: =DEC2HEX(EEPROM16!J$13,2) -> 86 | Z95: =CONCATENATE(L95," ;",ROUND(#REF!,0),"rpm | ",ROUND(F95,1),"° | ",,ROUND(G95,2),"ms ") -> 
B96: 110 | C96: 17.75568182 | D96: 1065 | E96: 156.4945227 | F96: 8.4318 | G96: 6.505195618 | H96: 6505.195618 | I96: 6115 | J96: 0 | K96: 152.875 | L96: 152.875 | U96: =DEC2HEX(EEPROM16!K$13,2) -> 87 | Z96: =CONCATENATE(L96," ;",ROUND(#REF!,0),"rpm | ",ROUND(F96,1),"° | ",,ROUND(G96,2),"ms ") -> 
B97: 111 | C97: 17.59572072 | D97: 1055 | E97: 157.9778831 | F97: 8.36964 | G97: 6.576676145 | H97: 6576.676145 | I97: 6186 | J97: 0 | K97: 154.65 | L97: 154.65 | U97: =DEC2HEX(EEPROM16!L$13,2) -> 89 | Z97: =CONCATENATE(L97," ;",ROUND(#REF!,0),"rpm | ",ROUND(F97,1),"° | ",,ROUND(G97,2),"ms ") -> 
B98: 112 | C98: 17.43861607 | D98: 1046 | E98: 159.3371574 | F98: 8.31266 | G98: 6.642342256 | H98: 6642.342256 | I98: 6252 | J98: 0 | K98: 156.3 | L98: 156.3 | U98: =DEC2HEX(EEPROM16!M$13,2) -> 8B | Z98: =CONCATENATE(L98," ;",ROUND(#REF!,0),"rpm | ",ROUND(F98,1),"° | ",,ROUND(G98,2),"ms ") -> 
B99: 113 | C99: 17.28429204 | D99: 1037 | E99: 160.7200257 | F99: 8.25568 | G99: 6.709148184 | H99: 6709.148184 | I99: 6319 | J99: 0 | K99: 157.975 | L99: 157.975 | U99: =DEC2HEX(EEPROM16!F$14,2) -> 8C | Z99: =CONCATENATE(L99," ;",ROUND(#REF!,0),"rpm | ",ROUND(F99,1),"° | ",,ROUND(G99,2),"ms ") -> 
B100: 114 | C100: 17.13267544 | D100: 1027 | E100: 162.2849724 | F100: 8.20388 | G100: 6.782882181 | H100: 6782.882181 | I100: 6392 | J100: 0 | K100: 159.8 | L100: 159.8 | U100: =DEC2HEX(EEPROM16!G$14,2) -> 8E | Z100: =CONCATENATE(L100," ;",ROUND(#REF!,0),"rpm | ",ROUND(F100,1),"° | ",,ROUND(G100,2),"ms ") -> 
B101: 115 | C101: 16.98369565 | D101: 1019 | E101: 163.5590448 | F101: 8.1469 | G101: 6.845453059 | H101: 6845.453059 | I101: 6455 | J101: 0 | K101: 161.375 | L101: 161.375 | U101: =DEC2HEX(EEPROM16!H$14,2) -> 90 | Z101: =CONCATENATE(L101," ;",ROUND(#REF!,0),"rpm | ",ROUND(F101,1),"° | ",,ROUND(G101,2),"ms ") -> 
B102: 116 | C102: 16.83728448 | D102: 1010 | E102: 165.0165017 | F102: 8.0951 | G102: 6.915 | H102: 6915 | I102: 6525 | J102: 0 | K102: 163.125 | L102: 163.125 | U102: =DEC2HEX(EEPROM16!I$14,2) -> 92 | Z102: =CONCATENATE(L102," ;",ROUND(#REF!,0),"rpm | ",ROUND(F102,1),"° | ",,ROUND(G102,2),"ms ") -> 
B103: 117 | C103: 16.69337607 | D103: 1001 | E103: 166.5001665 | F103: 8.0433 | G103: 6.985797536 | H103: 6985.797536 | I103: 6595 | J103: 0 | K103: 164.875 | L103: 164.875 | U103: =DEC2HEX(EEPROM16!J$14,2) -> 93 | Z103: =CONCATENATE(L103," ;",ROUND(#REF!,0),"rpm | ",ROUND(F103,1),"° | ",,ROUND(G103,2),"ms ") -> 
U104: =DEC2HEX(EEPROM16!K$14,2) -> 95 | Z104: =CONCATENATE(L104," ;",ROUND(#REF!,0),"rpm | ",ROUND(F104,1),"° | ",,ROUND(G104,2),"ms ") -> 
U105: =DEC2HEX(EEPROM16!L$14,2) -> 97
U106: =DEC2HEX(EEPROM16!M$14,2) -> 98
U107: =DEC2HEX(EEPROM16!F$15,2) -> 9A
U108: =DEC2HEX(EEPROM16!G$15,2) -> 9C
U109: =DEC2HEX(EEPROM16!H$15,2) -> 9D
U110: =DEC2HEX(EEPROM16!I$15,2) -> 9F
U111: =DEC2HEX(EEPROM16!J$15,2) -> A1
U112: =DEC2HEX(EEPROM16!K$15,2) -> A3
U113: =DEC2HEX(EEPROM16!L$15,2) -> A4
U114: =DEC2HEX(EEPROM16!M$15,2) -> 00
U115: =DEC2HEX(EEPROM16!F$16,2) -> 00
U116: =DEC2HEX(EEPROM16!G$16,2) -> 00
U117: =DEC2HEX(EEPROM16!H$16,2) -> 00
U118: =DEC2HEX(EEPROM16!I$16,2) -> 00
U119: =DEC2HEX(EEPROM16!J$16,2) -> 00
U120: =DEC2HEX(EEPROM16!K$16,2) -> 00
U121: =DEC2HEX(EEPROM16!L$16,2) -> 00
U122: =DEC2HEX(EEPROM16!M$16,2) -> 00
U123: =DEC2HEX(EEPROM16!F$17,2) -> 00
U124: =DEC2HEX(EEPROM16!G$17,2) -> 00
U125: =DEC2HEX(EEPROM16!H$17,2) -> 00
U126: =DEC2HEX(EEPROM16!I$17,2) -> 00
U127: =DEC2HEX(EEPROM16!J$17,2) -> 00
U128: =DEC2HEX(EEPROM16!K$17,2) -> 00
U129: =DEC2HEX(EEPROM16!L$17,2) -> 00
U130: =DEC2HEX(EEPROM16!M$17,2) -> 01
U131: =DEC2HEX(EEPROM16!F$18,2) -> 4F
U132: =DEC2HEX(EEPROM16!G$18,2) -> 07
U133: =DEC2HEX(EEPROM16!H$18,2) -> 0B
U134: =DEC2HEX(EEPROM16!I$18,2) -> 32
U135: =DEC2HEX(EEPROM16!J$18,2) -> 32
U136: =DEC2HEX(EEPROM16!K$18,2) -> 02
U137: =DEC2HEX(EEPROM16!L$18,2) -> 01
U138: =DEC2HEX(EEPROM16!M$18,2) -> 14
U139: =DEC2HEX(EEPROM16!F$19,2) -> 12
U140: =DEC2HEX(EEPROM16!G$19,2) -> 00
U141: =DEC2HEX(EEPROM16!H$19,2) -> 01
U142: =DEC2HEX(EEPROM16!I$19,2) -> 08
U143: =DEC2HEX(EEPROM16!J$19,2) -> 0E
U144: =DEC2HEX(EEPROM16!K$19,2) -> 28
U145: =DEC2HEX(EEPROM16!L$19,2) -> 17
U146: =DEC2HEX(EEPROM16!M$19,2) -> 75
B175: =IFERROR(B9,"") -> 23 | C175: =IFERROR(D9,"") -> 5095 | D175: =IFERROR(C9,"") -> 84.91847826
B176: =IFERROR(B10,"") -> 24 | C176: 4882 | D176: 81.38020833
B177: =IFERROR(B11,"") -> 25 | C177: 4687 | D177: 78.125
B178: =IFERROR(B12,"") -> 26 | C178: 4507 | D178: 75.12019231
B179: =IFERROR(B13,"") -> 27 | C179: 4340 | D179: 72.33796296
B180: =IFERROR(B14,"") -> 28 | C180: 4185 | D180: 69.75446429
B181: =IFERROR(B15,"") -> 29 | C181: 4040 | D181: 67.34913793
B182: =IFERROR(B16,"") -> 30 | C182: 3906 | D182: 65.10416667
B183: =IFERROR(B17,"") -> 31 | C183: 3780 | D183: 63.00403226
B184: =IFERROR(B18,"") -> 32 | C184: 3662 | D184: 61.03515625
B185: =IFERROR(B19,"") -> 33 | C185: 3551 | D185: 59.18560606
B186: =IFERROR(B20,"") -> 34 | C186: 3446 | D186: 57.44485294
B187: =IFERROR(B21,"") -> 35 | C187: 3348 | D187: 55.80357143
B188: =IFERROR(B22,"") -> 36 | C188: 3255 | D188: 54.25347222
B189: =IFERROR(B23,"") -> 37 | C189: 3167 | D189: 52.78716216
B190: =IFERROR(B24,"") -> 38 | C190: 3083 | D190: 51.39802632
B191: =IFERROR(B25,"") -> 39 | C191: 3004 | D191: 50.08012821
B192: =IFERROR(B26,"") -> 40 | C192: 2929 | D192: 48.828125
B193: =IFERROR(B27,"") -> 41 | C193: 2858 | D193: 47.63719512
B194: =IFERROR(B28,"") -> 42 | C194: 2790 | D194: 46.50297619
B195: =IFERROR(B29,"") -> 43 | C195: 2725 | D195: 45.42151163
B196: =IFERROR(B30,"") -> 44 | C196: 2663 | D196: 44.38920455
B197: =IFERROR(B31,"") -> 45 | C197: 2604 | D197: 43.40277778
B198: =IFERROR(B32,"") -> 46 | C198: 2547 | D198: 42.45923913
B199: =IFERROR(B33,"") -> 47 | C199: 2493 | D199: 41.55585106
B200: =IFERROR(B34,"") -> 48 | C200: 2441 | D200: 40.69010417
B201: =IFERROR(B35,"") -> 49 | C201: 2391 | D201: 39.85969388
B202: =IFERROR(B36,"") -> 50 | C202: 2343 | D202: 39.0625
B203: =IFERROR(B37,"") -> 51 | C203: 2297 | D203: 38.29656863
B204: =IFERROR(B38,"") -> 52 | C204: 2253 | D204: 37.56009615
B205: =IFERROR(B39,"") -> 53 | C205: 2211 | D205: 36.85141509
B206: =IFERROR(B40,"") -> 54 | C206: 2170 | D206: 36.16898148
B207: =IFERROR(B41,"") -> 55 | C207: =IFERROR(D41,"") -> 2130 | D207: =IFERROR(C41,"") -> 35.51136364
B208: =IFERROR(B42,"") -> 56 | C208: 2092 | D208: 34.87723214
B209: =IFERROR(B43,"") -> 57 | C209: 2055 | D209: 34.26535088
B210: =IFERROR(B44,"") -> 58 | C210: 2020 | D210: 33.67456897
B211: =IFERROR(B45,"") -> 59 | C211: 1986 | D211: 33.10381356
B212: =IFERROR(B46,"") -> 60 | C212: 1953 | D212: 32.55208333
B213: =IFERROR(B47,"") -> 61 | C213: 1921 | D213: 32.01844262
B214: =IFERROR(B48,"") -> 62 | C214: 1890 | D214: 31.50201613
B215: =IFERROR(B49,"") -> 63 | C215: 1860 | D215: 31.00198413
B216: =IFERROR(B50,"") -> 64 | C216: 1831 | D216: 30.51757812
B217: =IFERROR(B51,"") -> 65 | C217: 1802 | D217: 30.04807692
B218: =IFERROR(B52,"") -> 66 | C218: 1775 | D218: 29.59280303
B219: =IFERROR(B53,"") -> 67 | C219: 1749 | D219: 29.1511194
B220: =IFERROR(B54,"") -> 68 | C220: 1723 | D220: 28.72242647
B221: =IFERROR(B55,"") -> 69 | C221: 1698 | D221: 28.30615942
B222: =IFERROR(B56,"") -> 70 | C222: 1674 | D222: 27.90178571
B223: =IFERROR(B57,"") -> 71 | C223: 1650 | D223: 27.50880282
B224: =IFERROR(B58,"") -> 72 | C224: 1627 | D224: 27.12673611
B225: =IFERROR(B59,"") -> 73 | C225: 1605 | D225: 26.75513699
B226: =IFERROR(B60,"") -> 74 | C226: 1583 | D226: 26.39358108
B227: =IFERROR(B61,"") -> 75 | C227: 1562 | D227: 26.04166667
B228: =IFERROR(B62,"") -> 76 | C228: 1541 | D228: 25.69901316
... 107 more rows

Sheet advance_at_lowRPM
G1: delay = | I1: 4.4 | J1: us
B2: Advance at low RPM | D2: =CONCATENATE("from ",Z7," to") -> from 480 to | E2: =CONCATENATE(ROUNDDOWN(Advance_curve!D103,0)," RPM") -> 1001 RPM | H2: multiplier | I2: 14 | O2: =Advance_curve!$F$5 -> 50 | P2: pickup pos
O3: =Advance_curve!$B9 -> 23 | P3: tmr count min
H4: Prescaler = | I4: =Advance_curve!O30 -> 8 | W4: =IF(R8<255,"=(360000/P8)*T8",0) -> 0
H5: Cylinder(s) = | I5: =Advance_curve!O24 -> 1
H6: Strokes = | I6: =Advance_curve!O25 -> 2 | N6: Frq | O6: RPM | P6: periode | Q6: periode | R6: timer1 | S6: TMR1h | T6: Delay | U6: 1° | V6: Avance | W6: Avance | Z6: Mini:
H7: RPM mini = | I7: =IF(Advance_curve!O30=1,"336",IF(Advance_curve!O30=2,"168",IF(Advance_curve!O30=4,"84",IF(Advance_curve!O30=8,"42","False")))) -> 42 | N7: Hz | P7: µs | Q7: ms | T7: µs | U7: us | V7: degres | W7: degres | Z7: =MIN(Z8:Z49) -> 480
N8: 1 | O8: =IF(N8="End"," ",(N8*60*$I$6)/(2*$I$5)) -> 60 | P8: =1000000/N8 -> 1000000 | Q8: =P8/1000 -> 1000 | R8: =IF(N8="End"," ",INT(P8*Advance_curve!$C$4)/$I$4) -> 500000 | S8: =IF(N8="End"," ",R8/255) -> 1960.784314 | T8: =($I$1 *$S8*$I$2) -> 120784.3137 | U8: =P8/360 -> 2777.777778 | V8: =T8/U8 -> 43.48235294 | W8: =IF($S8<255,Advance_curve!$F$5-V8,"0") -> 0 | X8: =IF($S8<255," ","TMR1h>255") -> TMR1h>255 | Z8: =IF($S8<255,O8," ") -> 
N9: =IF(N8<Advance_curve!$C$103,N8+1,"End") -> 2 | O9: 120 | P9: =1000000/N9 -> 500000 | Q9: =P9/1000 -> 500 | R9: =IF(N9="End"," ",INT(P9*Advance_curve!$C$4)/$I$4) -> 250000 | S9: =IF(N9="End"," ",R9/255) -> 980.3921569 | T9: =($I$1 *$S9*$I$2) -> 60392.15686 | U9: 1388.888889 | V9: =T9/U9 -> 43.48235294 | W9: =IF($S9<255,Advance_curve!$F$5-V9,"0") -> 0 | X9: =IF($S9<255," ","TMR1h>255") -> TMR1h>255
N10: =IF(N9<Advance_curve!$C$103,N9+1,"End") -> 3 | O10: 180 | P10: 333333.3333 | Q10: 333.3333333 | R10: =IF(N10="End"," ",INT(P10*Advance_curve!$C$4)/$I$4) -> 166666.625 | S10: 653.5946078 | T10: 40261.42784 | U10: 925.9259259 | V10: 43.48234207 | W10: =IF($S10<255,Advance_curve!$F$5-V10,"0") -> 0 | X10: TMR1h>255
N11: =IF(N10<Advance_curve!$C$103,N10+1,"End") -> 4 | O11: 240 | P11: 250000 | Q11: 250 | R11: =IF(N11="End"," ",INT(P11*Advance_curve!$C$4)/$I$4) -> 125000 | S11: 490.1960784 | T11: 30196.07843 | U11: 694.4444444 | V11: 43.48235294 | W11: =IF($S11<255,Advance_curve!$F$5-V11,"0") -> 0 | X11: TMR1h>255
N12: =IF(N11<Advance_curve!$C$103,N11+1,"End") -> 5 | O12: 300 | P12: 200000 | Q12: 200 | R12: =IF(N12="End"," ",INT(P12*Advance_curve!$C$4)/$I$4) -> 100000 | S12: 392.1568627 | T12: 24156.86275 | U12: 555.5555556 | V12: 43.48235294 | W12: =IF($S12<255,Advance_curve!$F$5-V12,"0") -> 0 | X12: TMR1h>255
N13: =IF(N12<Advance_curve!$C$103,N12+1,"End") -> 6 | O13: 360 | P13: 166666.6667 | Q13: 166.6666667 | R13: =IF(N13="End"," ",INT(P13*Advance_curve!$C$4)/$I$4) -> 83333.25 | S13: 326.7970588 | T13: 20130.69882 | U13: 462.962963 | V13: 43.48230946 | W13: =IF($S13<255,Advance_curve!$F$5-V13,"0") -> 0 | X13: TMR1h>255
N14: =IF(N13<Advance_curve!$C$103,N13+1,"End") -> 7 | O14: 420 | P14: 142857.1429 | Q14: 142.8571429 | R14: =IF(N14="End"," ",INT(P14*Advance_curve!$C$4)/$I$4) -> 71428.5 | S14: 280.1117647 | T14: 17254.88471 | U14: 396.8253968 | V14: 43.48230946 | W14: =IF($S14<255,Advance_curve!$F$5-V14,"0") -> 0 | X14: TMR1h>255
N15: =IF(N14<Advance_curve!$C$103,N14+1,"End") -> 8 | O15: 480 | P15: 125000 | Q15: 125 | R15: =IF(N15="End"," ",INT(P15*Advance_curve!$C$4)/$I$4) -> 62500 | S15: 245.0980392 | T15: 15098.03922 | U15: 347.2222222 | V15: 43.48235294 | W15: =IF($S15<255,Advance_curve!$F$5-V15,"0") -> 6.517647059 | Z15: =IF($S15<255,O15," ") -> 480
N16: =IF(N15<Advance_curve!$C$103,N15+1,"End") -> 9 | O16: 540 | P16: 111111.1111 | Q16: 111.1111111 | R16: =IF(N16="End"," ",INT(P16*Advance_curve!$C$4)/$I$4) -> 55555.5 | S16: 217.8647059 | T16: 13420.46588 | U16: 308.6419753 | V16: 43.48230946 | W16: =IF($S16<255,Advance_curve!$F$5-V16,"0") -> 6.517690541 | Z16: =IF($S16<255,O16," ") -> 540
L17: <= avance | N17: =IF(N16<Advance_curve!$C$103,N16+1,"End") -> 10 | O17: 600 | P17: 100000 | Q17: 100 | R17: =IF(N17="End"," ",INT(P17*Advance_curve!$C$4)/$I$4) -> 50000 | S17: 196.0784314 | T17: 12078.43137 | U17: 277.7777778 | V17: 43.48235294 | W17: =IF($S17<255,Advance_curve!$F$5-V17,"0") -> 6.517647059 | Z17: 600
N18: =IF(N17<Advance_curve!$C$103,N17+1,"End") -> 11 | O18: 660 | P18: 90909.09091 | Q18: 90.90909091 | R18: =IF(N18="End"," ",INT(P18*Advance_curve!$C$4)/$I$4) -> 45454.5 | S18: 178.2529412 | T18: 10980.38118 | U18: 252.5252525 | V18: 43.48230946 | W18: =IF($S18<255,Advance_curve!$F$5-V18,"0") -> 6.517690541 | Z18: 660
N19: =IF(N18<Advance_curve!$C$103,N18+1,"End") -> 12 | O19: 720 | P19: 83333.33333 | Q19: 83.33333333 | R19: =IF(N19="End"," ",INT(P19*Advance_curve!$C$4)/$I$4) -> 41666.625 | S19: 163.3985294 | T19: 10065.34941 | U19: 231.4814815 | V19: 43.48230946 | W19: =IF($S19<255,Advance_curve!$F$5-V19,"0") -> 6.517690541 | Z19: 720
N20: =IF(N19<Advance_curve!$C$103,N19+1,"End") -> 13 | O20: 780 | P20: 76923.07692 | Q20: 76.92307692 | R20: =IF(N20="End"," ",INT(P20*Advance_curve!$C$4)/$I$4) -> 38461.5 | S20: 150.8294118 | T20: 9291.091765 | U20: 213.6752137 | V20: 43.48230946 | W20: =IF($S20<255,Advance_curve!$F$5-V20,"0") -> 6.517690541 | Z20: 780
L21: TDC | N21: =IF(N20<Advance_curve!$C$103,N20+1,"End") -> 14 | O21: 840 | P21: 71428.57143 | Q21: 71.42857143 | R21: =IF(N21="End"," ",INT(P21*Advance_curve!$C$4)/$I$4) -> 35714.25 | S21: 140.0558824 | T21: 8627.442353 | U21: 198.4126984 | V21: 43.48230946 | W21: =IF($S21<255,Advance_curve!$F$5-V21,"0") -> 6.517690541 | Z21: 840
N22: =IF(N21<Advance_curve!$C$103,N21+1,"End") -> 15 | O22: 900 | P22: 66666.66667 | Q22: 66.66666667 | R22: =IF(N22="End"," ",INT(P22*Advance_curve!$C$4)/$I$4) -> 33333.25 | S22: 130.7186275 | T22: 8052.267451 | U22: 185.1851852 | V22: 43.48224424 | W22: =IF($S22<255,Advance_curve!$F$5-V22,"0") -> 6.517755765 | Z22: 900
N23: =IF(N22<Advance_curve!$C$103,N22+1,"End") -> 16 | O23: 960 | P23: 62500 | Q23: 62.5 | R23: =IF(N23="End"," ",INT(P23*Advance_curve!$C$4)/$I$4) -> 31250 | S23: 122.5490196 | T23: 7549.019608 | U23: 173.6111111 | V23: 43.48235294 | W23: =IF($S23<255,Advance_curve!$F$5-V23,"0") -> 6.517647059 | Z23: 960
N24: =IF(N23<Advance_curve!$C$103,N23+1,"End") -> 17 | O24: 1020 | P24: 58823.52941 | Q24: 58.82352941 | R24: =IF(N24="End"," ",INT(P24*Advance_curve!$C$4)/$I$4) -> 29411.75 | S24: 115.3401961 | T24: 7104.956078 | U24: 163.3986928 | V24: 43.4823312 | W24: =IF($S24<255,Advance_curve!$F$5-V24,"0") -> 6.5176688 | Z24: 1020
L25: <= retard | N25: =IF(N24<Advance_curve!$C$103,N24+1,"End") -> End | R25: =IF(N25="End"," ",INT(P25*Advance_curve!$C$4)/$I$4) ->  | W25: =IF($S25<255,Advance_curve!$F$5-V25,"0") -> 0 | X25: TMR1h>255
N26: =IF(N25<Advance_curve!$C$103,N25+1,"End") -> End | O26: =IF(N26="End"," ",(N26*60*$I$6)/(2*$I$5)) ->  | R26: =IF(N26="End"," ",INT(P26*Advance_curve!$C$4)/$I$4) ->  | W26: =IF($S26<255,Advance_curve!$F$5-V26,"0") -> 0 | X26: TMR1h>255
N27: =IF(N26<Advance_curve!$C$103,N26+1,"End") -> End | O27: =IF(N27="End"," ",(N27*60*$I$6)/(2*$I$5)) ->  | P27: =IF(N27<>"End",(1000000/N27),#N/A) ->  | R27: =IF(N27="End"," ",INT(P27*Advance_curve!$C$4)/$I$4) ->  | W27: =IF($S27<255,Advance_curve!$F$5-V27,"0") -> 0 | X27: TMR1h>255
N28: =IF(N27<Advance_curve!$C$103,N27+1,"End") -> End | P28: =IF(N28<>"End",(1000000/N28),#N/A) ->  | R28: =IF(N28="End"," ",INT(P28*Advance_curve!$C$4)/$I$4) ->  | W28: =IF($S28<255,Advance_curve!$F$5-V28,"0") -> 0 | X28: TMR1h>255
N29: =IF(N28<Advance_curve!$C$103,N28+1,"End") -> End | R29: =IF(N29="End"," ",INT(P29*Advance_curve!$C$4)/$I$4) ->  | W29: =IF($S29<255,Advance_curve!$F$5-V29,"0") -> 0 | X29: TMR1h>255
N30: =IF(N29<Advance_curve!$C$103,N29+1,"End") -> End | R30: =IF(N30="End"," ",INT(P30*Advance_curve!$C$4)/$I$4) ->  | W30: =IF($S30<255,Advance_curve!$F$5-V30,"0") -> 0 | X30: TMR1h>255
N31: =IF(N30<Advance_curve!$C$103,N30+1,"End") -> End | R31: =IF(N31="End"," ",INT(P31*Advance_curve!$C$4)/$I$4) ->  | W31: =IF($S31<255,Advance_curve!$F$5-V31,"0") -> 0 | X31: TMR1h>255
N32: =IF(N31<Advance_curve!$C$103,N31+1,"End") -> End | R32: =IF(N32="End"," ",INT(P32*Advance_curve!$C$4)/$I$4) ->  | W32: =IF($S32<255,Advance_curve!$F$5-V32,"0") -> 0 | X32: TMR1h>255
N33: =IF(N32<Advance_curve!$C$103,N32+1,"End") -> End | R33: =IF(N33="End"," ",INT(P33*Advance_curve!$C$4)/$I$4) ->  | W33: =IF($S33<255,Advance_curve!$F$5-V33,"0") -> 0 | X33: TMR1h>255
N34: =IF(N33<Advance_curve!$C$103,N33+1,"End") -> End | R34: =IF(N34="End"," ",INT(P34*Advance_curve!$C$4)/$I$4) ->  | W34: =IF($S34<255,Advance_curve!$F$5-V34,"0") -> 0 | X34: TMR1h>255
N35: =IF(N34<Advance_curve!$C$103,N34+1,"End") -> End | R35: =IF(N35="End"," ",INT(P35*Advance_curve!$C$4)/$I$4) ->  | W35: =IF($S35<255,Advance_curve!$F$5-V35,"0") -> 0 | X35: TMR1h>255
N36: =IF(N35<Advance_curve!$C$103,N35+1,"End") -> End | R36: =IF(N36="End"," ",INT(P36*Advance_curve!$C$4)/$I$4) ->  | W36: =IF($S36<255,Advance_curve!$F$5-V36,"0") -> 0 | X36: TMR1h>255
N37: =IF(N36<Advance_curve!$C$103,N36+1,"End") -> End | R37: =IF(N37="End"," ",INT(P37*Advance_curve!$C$4)/$I$4) ->  | W37: =IF($S37<255,Advance_curve!$F$5-V37,"0") -> 0 | X37: TMR1h>255
N38: =IF(N37<Advance_curve!$C$103,N37+1,"End") -> End | R38: =IF(N38="End"," ",INT(P38*Advance_curve!$C$4)/$I$4) ->  | W38: =IF($S38<255,Advance_curve!$F$5-V38,"0") -> 0 | X38: TMR1h>255
N39: =IF(N38<Advance_curve!$C$103,N38+1,"End") -> End | R39: =IF(N39="End"," ",INT(P39*Advance_curve!$C$4)/$I$4) ->  | W39: =IF($S39<255,Advance_curve!$F$5-V39,"0") -> 0 | X39: TMR1h>255
N40: =IF(N39<Advance_curve!$C$103,N39+1,"End") -> End | R40: =IF(N40="End"," ",INT(P40*Advance_curve!$C$4)/$I$4) ->  | W40: =IF($S40<255,Advance_curve!$F$5-V40,"0") -> 0 | X40: TMR1h>255
N41: =IF(N40<Advance_curve!$C$103,N40+1,"End") -> End | R41: =IF(N41="End"," ",INT(P41*Advance_curve!$C$4)/$I$4) ->  | W41: =IF($S41<255,Advance_curve!$F$5-V41,"0") -> 0 | X41: TMR1h>255
N42: =IF(N41<Advance_curve!$C$103,N41+1,"End") -> End | R42: =IF(N42="End"," ",INT(P42*Advance_curve!$C$4)/$I$4) ->  | W42: =IF($S42<255,Advance_curve!$F$5-V42,"0") -> 0 | X42: TMR1h>255
N43: =IF(N42<Advance_curve!$C$103,N42+1,"End") -> End | R43: =IF(N43="End"," ",INT(P43*Advance_curve!$C$4)/$I$4) ->  | W43: =IF($S43<255,Advance_curve!$F$5-V43,"0") -> 0 | X43: TMR1h>255
N44: =IF(N43<Advance_curve!$C$103,N43+1,"End") -> End | R44: =IF(N44="End"," ",INT(P44*Advance_curve!$C$4)/$I$4) ->  | W44: =IF($S44<255,Advance_curve!$F$5-V44,"0") -> 0 | X44: TMR1h>255
N45: =IF(N44<Advance_curve!$C$103,N44+1,"End") -> End | R45: =IF(N45="End"," ",INT(P45*Advance_curve!$C$4)/$I$4) ->  | W45: =IF($S45<255,Advance_curve!$F$5-V45,"0") -> 0 | X45: TMR1h>255
N46: =IF(N45<Advance_curve!$C$103,N45+1,"End") -> End | R46: =IF(N46="End"," ",INT(P46*Advance_curve!$C$4)/$I$4) ->  | W46: =IF($S46<255,Advance_curve!$F$5-V46,"0") -> 0 | X46: TMR1h>255
N47: =IF(N46<Advance_curve!$C$103,N46+1,"End") -> End | R47: =IF(N47="End"," ",INT(P47*Advance_curve!$C$4)/$I$4) ->  | W47: =IF($S47<255,Advance_curve!$F$5-V47,"0") -> 0 | X47: TMR1h>255
N48: =IF(N47<Advance_curve!$C$103,N47+1,"End") -> End | R48: =IF(N48="End"," ",INT(P48*Advance_curve!$C$4)/$I$4) ->  | W48: =IF($S48<255,Advance_curve!$F$5-V48,"0") -> 0 | X48: TMR1h>255
N49: =IF(N48<Advance_curve!$C$103,N48+1,"End") -> End | R49: =IF(N49="End"," ",INT(P49*Advance_curve!$C$4)/$I$4) ->  | W49: =IF($S49<255,Advance_curve!$F$5-V49,"0") -> 0 | X49: TMR1h>255

Sheet VeryLowRPM
B2: =CONCATENATE("advance from ",E9," to ",advance_at_lowRPM!Z7," RPM") -> advance from 91 to 480 RPM
G3: Si une periode entre 2 pkp fait 131ms pour 360°
B4: Prescaler | C4: =Advance_curve!O30 -> 8 | G4: alors 50° (pkp position) sont parcourus en 131/360*50 = 18ms
B5: clock | C5: =Advance_curve!C3 -> 16 | G5: Si on attend 18ms x TMR1DEB on spark pile au TDC.
B6: periode TMR1L | C6: =4*C4/C5 -> 2 | E6: 5 | F6: debords max
B7: TMR1 | C7: =65536*C6/1000 -> 131.072 | D7: ms | E7: =E6*C7 -> 655.36 | F7: ms max
B8: pkp position | C8: =Advance_curve!F5 -> 50 | D8: deg | E8: =1000/E7 -> 1.525878906 | F8: Hz min | G8: If one period between 2 pickups last 131ms for 360°
B9: Time from pickup position to TDC | C9: =(C7/360)*C8+C11 -> 18.20444444 | D9: ms | E9: =INT(60*E8) -> 91 | F9: rpm min | G9: then 50° (which is the pickup position) are travelled in 131/360 * 50 = 18ms
G10: If the processor waits 18ms * TMR1DEB (Number of Timer1 overflows) than spark append just at TDC
B11: Manual shift | C11: 0 | D11: ms

Sheet EEPROM16
O1: INTEL 16HEX format | Q1: RAW format
O2: :020000040000FA
A3: Bytes in Row | B3: Address MSB (hex) | C3: Address LSB (hex) | D3: Address Start (MSB) | E3: Address Start (LSB) | F3: +0 | G3: +1 | H3: +2 | I3: +3 | J3: +4 | K3: +5 | L3: +6 | M3: +7 | O3: :020000040001F9 | S3: sum[dec] | T3: sum[hex] | U3: LSB | V3: two's complement [dec] | W3: two's complement +1 | X3: cksum
A4: 16 | B4: =DEC2HEX(D4,2) -> E0 | C4: =DEC2HEX(E4,2) -> 00 | D4: 224 | E4: 0 | F4: =Advance_curve!L9 -> 0 | G4: =Advance_curve!L10 -> 0 | H4: =Advance_curve!L11 -> 0 | I4: =Advance_curve!L12 -> 1.2 | J4: =Advance_curve!L13 -> 3.55 | K4: =Advance_curve!L14 -> 5.8 | L4: =Advance_curve!L15 -> 8 | M4: =Advance_curve!L16 -> 10.15 | O4: =":"&DEC2HEX(A4,2)&B4&C4&"00"&DEC2HEX(F4,2)&"00"&DEC2HEX(G4,2)&"00"&DEC2HEX(H4,2)&"00"&DEC2HEX(I4,2)&"00"&DEC2HEX(J4,2)&"00"&DEC2HEX(K4,2)&"00"&DEC2HEX(L4,2)&"00"&DEC2HEX(M4,2)&"00"&X4 -> :10E0000000000000000001000300050008000A00F4 | Q4: =DEC2HEX(F4,2)&" "&DEC2HEX(G4,2)&" "&DEC2HEX(H4,2)&" "&DEC2HEX(I4,2)&" "&DEC2HEX(J4,2)&" "&DEC2HEX(K4,2)&" "&DEC2HEX(L4,2)&" "&DEC2HEX(M4,2) -> 00 00 00 01 03 05 08 0A | S4: =SUM(A4,D4:M4) -> 268.7 | T4: =DEC2HEX(S4) -> 10C | U4: =RIGHT(T4,2) -> 0C | V4: =255-HEX2DEC(U4) -> 243 | W4: =V4+1 -> 244 | X4: =IF(W4=256,"00",DEC2HEX(W4,2)) -> F4
A5: 16 | B5: =DEC2HEX(D5,2) -> E0 | C5: =DEC2HEX(E5,2) -> 10 | D5: 224 | E5: 16 | F5: =Advance_curve!L17 -> 12.275 | G5: =Advance_curve!L18 -> 14.35 | H5: =Advance_curve!L19 -> 16.4 | I5: =Advance_curve!L20 -> 18.4 | J5: =Advance_curve!L21 -> 20.4 | K5: =Advance_curve!L22 -> 22.35 | L5: =Advance_curve!L23 -> 24.3 | M5: =Advance_curve!L24 -> 26.25 | O5: =":"&DEC2HEX(A5,2)&B5&C5&"00"&DEC2HEX(F5,2)&"00"&DEC2HEX(G5,2)&"00"&DEC2HEX(H5,2)&"00"&DEC2HEX(I5,2)&"00"&DEC2HEX(J5,2)&"00"&DEC2HEX(K5,2)&"00"&DEC2HEX(L5,2)&"00"&DEC2HEX(M5,2)&"00"&X5 -> :10E010000C000E00100012001400160018001A0066 | Q5: 0C 0E 10 12 14 16 18 1A | S5: =SUM(A5,D5:M5) -> 410.725 | T5: =DEC2HEX(S5) -> 19A | U5: =RIGHT(T5,2) -> 9A | V5: =255-HEX2DEC(U5) -> 101 | W5: 102 | X5: 66
A6: 16 | B6: E0 | C6: 20 | D6: 224 | E6: 32 | F6: =Advance_curve!L25 -> 28.175 | G6: =Advance_curve!L26 -> 30.075 | H6: =Advance_curve!L27 -> 31.95 | I6: =Advance_curve!L28 -> 33.825 | J6: =Advance_curve!L29 -> 35.7 | K6: =Advance_curve!L30 -> 37.55 | L6: =Advance_curve!L31 -> 39.375 | M6: =Advance_curve!L32 -> 41.225 | O6: :10E020001C001E001F0021002300250027002900DB | Q6: 1C 1E 1F 21 23 25 27 29 | S6: =SUM(A6,D6:M6) -> 549.875 | T6: 225 | U6: 25 | V6: 218 | W6: 219 | X6: DB
A7: 16 | B7: E0 | C7: 30 | D7: 224 | E7: 48 | F7: =Advance_curve!L33 -> 43.075 | G7: =Advance_curve!L34 -> 44.9 | H7: =Advance_curve!L35 -> 46.7 | I7: =Advance_curve!L36 -> 48.525 | J7: =Advance_curve!L37 -> 50.325 | K7: =Advance_curve!L38 -> 52.125 | L7: =Advance_curve!L39 -> 53.9 | M7: =Advance_curve!L40 -> 55.7 | O7: :10E030002B002C002E003000320034003500370055 | Q7: 2B 2C 2E 30 32 34 35 37 | S7: =SUM(A7,D7:M7) -> 683.25 | T7: 2AB | U7: AB | V7: 84 | W7: 85 | X7: 55
A8: 16 | B8: E0 | C8: 40 | D8: 224 | E8: 64 | F8: =Advance_curve!L41 -> 57.5 | G8: =Advance_curve!L42 -> 59.275 | H8: =Advance_curve!L43 -> 61.075 | I8: =Advance_curve!L44 -> 62.825 | J8: =Advance_curve!L45 -> 64.6 | K8: =Advance_curve!L46 -> 66.35 | L8: =Advance_curve!L47 -> 68.125 | M8: =Advance_curve!L48 -> 69.875 | O8: :10E0400039003B003D003E004000420044004500D3 | Q8: 39 3B 3D 3E 40 42 44 45 | S8: 813.625 | T8: 32D | U8: 2D | V8: 210 | W8: 211 | X8: D3
A9: 16 | B9: E0 | C9: 50 | D9: 224 | E9: 80 | F9: =Advance_curve!L49 -> 71.625 | G9: =Advance_curve!L50 -> 73.4 | H9: =Advance_curve!L51 -> 75.2 | I9: =Advance_curve!L52 -> 76.925 | J9: =Advance_curve!L53 -> 78.65 | K9: =Advance_curve!L54 -> 80.425 | L9: =Advance_curve!L55 -> 82.15 | M9: =Advance_curve!L56 -> 83.9 | O9: :10E05000470049004B004C004E0050005200530052 | Q9: 47 49 4B 4C 4E 50 52 53 | S9: 942.275 | T9: 3AE | U9: AE | V9: 81 | W9: 82 | X9: 52
A10: 16 | B10: E0 | C10: 60 | D10: 224 | E10: 96 | F10: =Advance_curve!L57 -> 85.65 | G10: =Advance_curve!L58 -> 87.4 | H10: =Advance_curve!L59 -> 89.125 | I10: =Advance_curve!L60 -> 90.9 | J10: =Advance_curve!L61 -> 92.625 | K10: =Advance_curve!L62 -> 94.375 | L10: =Advance_curve!L63 -> 96.125 | M10: =Advance_curve!L64 -> 97.825 | O10: :10E060005500570059005A005C005E0060006100D2 | Q10: 55 57 59 5A 5C 5E 60 61 | S10: 1070.025 | T10: 42E | U10: 2E | V10: 209 | W10: 210 | X10: D2
A11: 16 | B11: E0 | C11: 70 | D11: 224 | E11: 112 | F11: =Advance_curve!L65 -> 99.55 | G11: =Advance_curve!L66 -> 101.325 | H11: =Advance_curve!L67 -> 103.05 | I11: =Advance_curve!L68 -> 104.725 | J11: =Advance_curve!L69 -> 106.525 | K11: =Advance_curve!L70 -> 108.175 | L11: =Advance_curve!L71 -> 109.95 | M11: =Advance_curve!L72 -> 111.675 | O11: :10E0700063006500670068006A006C006D006F0054 | Q11: 63 65 67 68 6A 6C 6D 6F | S11: 1196.975 | T11: 4AC | U11: AC | V11: 83 | W11: 84 | X11: 54
A12: 16 | B12: E0 | C12: 80 | D12: 224 | E12: 128 | F12: =Advance_curve!L73 -> 113.425 | G12: =Advance_curve!L74 -> 115.125 | H12: =Advance_curve!L75 -> 116.875 | I12: =Advance_curve!L76 -> 118.525 | J12: =Advance_curve!L77 -> 120.3 | K12: =Advance_curve!L78 -> 122.05 | L12: =Advance_curve!L79 -> 123.675 | M12: =Advance_curve!L80 -> 125.475 | O12: :10E08000710073007400760078007A007B007D00D5 | Q12: 71 73 74 76 78 7A 7B 7D | S12: 1323.45 | T12: 52B | U12: 2B | V12: 212 | W12: 213 | X12: D5
A13: 16 | B13: E0 | C13: 90 | D13: 224 | E13: 144 | F13: =Advance_curve!L81 -> 127.175 | G13: =Advance_curve!L82 -> 128.925 | H13: =Advance_curve!L83 -> 130.55 | I13: =Advance_curve!L84 -> 132.35 | J13: =Advance_curve!L85 -> 134.05 | K13: =Advance_curve!L86 -> 135.8 | L13: =Advance_curve!L87 -> 137.45 | M13: =Advance_curve!L88 -> 139.225 | O13: :10E090007F008000820084008600870089008B0057 | Q13: 7F 80 82 84 86 87 89 8B | S13: 1449.525 | T13: 5A9 | U13: A9 | V13: 86 | W13: 87 | X13: =IF(W13=256,"00",DEC2HEX(W13,2)) -> 57
A14: 16 | B14: E0 | C14: A0 | D14: 224 | E14: 160 | F14: =Advance_curve!L89 -> 140.925 | G14: =Advance_curve!L90 -> 142.65 | H14: =Advance_curve!L91 -> 144.275 | I14: =Advance_curve!L92 -> 146.05 | J14: =Advance_curve!L93 -> 147.725 | K14: =Advance_curve!L94 -> 149.4 | L14: =Advance_curve!L95 -> 151.125 | M14: =Advance_curve!L96 -> 152.875 | O14: :10E0A0008C008E00900092009300950097009800D9 | Q14: 8C 8E 90 92 93 95 97 98 | S14: 1575.025 | T14: 627 | U14: 27 | V14: 216 | W14: 217 | X14: =IF(W14=256,"00",DEC2HEX(W14,2)) -> D9
A15: 16 | B15: E0 | C15: B0 | D15: 224 | E15: 176 | F15: =Advance_curve!L97 -> 154.65 | G15: =Advance_curve!L98 -> 156.3 | H15: =Advance_curve!L99 -> 157.975 | I15: =Advance_curve!L100 -> 159.8 | J15: =Advance_curve!L101 -> 161.375 | K15: =Advance_curve!L102 -> 163.125 | L15: =Advance_curve!L103 -> 164.875 | M15: 0 | O15: :10E0B0009A009C009D009F00A100A300A400000002 | Q15: 9A 9C 9D 9F A1 A3 A4 00 | S15: 1534.1 | T15: 5FE | U15: FE | V15: 1 | W15: 2 | X15: 02
A16: 16 | B16: E0 | C16: C0 | D16: 224 | E16: 192 | F16: 0 | G16: 0 | H16: 0 | I16: 0 | J16: 0 | K16: 0 | L16: 0 | M16: 0 | O16: :10E0C0000000000000000000000000000000000050 | Q16: 00 00 00 00 00 00 00 00 | S16: 432 | T16: =DEC2HEX(S16) -> 1B0 | U16: =RIGHT(T16,2) -> B0 | V16: =255-HEX2DEC(U16) -> 79 | W16: =V16+1 -> 80 | X16: =IF(W16=256,"00",DEC2HEX(W16,2)) -> 50
A17: 16 | B17: E0 | C17: D0 | D17: 224 | E17: 208 | F17: 0 | G17: 0 | H17: 0 | I17: 0 | J17: 0 | K17: 0 | L17: 0 | M17: =Advance_curve!$I$1 -> 1 | O17: =":"&DEC2HEX(A17,2)&B17&C17&"00"&DEC2HEX(F17,2)&"00"&DEC2HEX(G17,2)&"00"&DEC2HEX(H17,2)&"00"&DEC2HEX(I17,2)&"00"&DEC2HEX(J17,2)&"00"&DEC2HEX(K17,2)&"00"&DEC2HEX(L17,2)&"00"&DEC2HEX(M17,2)&"00"&X17 -> :10E0D000000000000000000000000000000001003F | Q17: =DEC2HEX(F17,2)&" "&DEC2HEX(G17,2)&" "&DEC2HEX(H17,2)&" "&DEC2HEX(I17,2)&" "&DEC2HEX(J17,2)&" "&DEC2HEX(K17,2)&" "&DEC2HEX(L17,2)&" "&DEC2HEX(M17,2) -> 00 00 00 00 00 00 00 01 | S17: 449 | T17: 1C1 | U17: C1 | V17: 62 | W17: 63 | X17: 3F
A18: 16 | B18: E0 | C18: E0 | D18: 224 | E18: 224 | F18: =Advance_curve!$J$1 -> 79 | G18: =Advance_curve!$K$1 -> 7 | H18: =Advance_curve!$L$1 -> 11 | I18: =Advance_curve!$F$5 -> 50 | J18: 50 | K18: =Advance_curve!$O$25 -> 2 | L18: =Advance_curve!P38 -> 1 | M18: 20 | O18: =":"&DEC2HEX(A18,2)&B18&C18&"00"&DEC2HEX(F18,2)&"00"&DEC2HEX(G18,2)&"00"&DEC2HEX(H18,2)&"00"&DEC2HEX(I18,2)&"00"&DEC2HEX(J18,2)&"00"&DEC2HEX(K18,2)&"00"&DEC2HEX(L18,2)&"00"&DEC2HEX(M18,2)&"00"&X18 -> :10E0E0004F0007000B003200320002000100140054 | Q18: =DEC2HEX(F18,2)&" "&DEC2HEX(G18,2)&" "&DEC2HEX(H18,2)&" "&DEC2HEX(I18,2)&" "&DEC2HEX(J18,2)&" "&DEC2HEX(K18,2)&" "&DEC2HEX(L18,2)&" "&DEC2HEX(M18,2) -> 4F 07 0B 32 32 02 01 14 | S18: 684 | T18: 2AC | U18: AC | V18: 83 | W18: 84 | X18: 54
A19: 16 | B19: E0 | C19: F0 | D19: 224 | E19: 240 | F19: =VeryLowRPM!C9 -> 18.20444444 | G19: 0 | H19: =IF(Advance_curve!$O$32="Auto",99,Advance_curve!$O$32/ 500) -> 1 | I19: =Advance_curve!$O$30 -> 8 | J19: =advance_at_lowRPM!$I$2 -> 14 | K19: =Advance_curve!$L$5 -> 40 | L19: =Advance_curve!$B$9 -> 23 | M19: =Advance_curve!$B$103 -> 117 | O19: :10E0F00012000000010008000E0028001700750043 | Q19: =DEC2HEX(F19,2)&" "&DEC2HEX(G19,2)&" "&DEC2HEX(H19,2)&" "&DEC2HEX(I19,2)&" "&DEC2HEX(J19,2)&" "&DEC2HEX(K19,2)&" "&DEC2HEX(L19,2)&" "&DEC2HEX(M19,2) -> 12 00 01 08 0E 28 17 75 | S19: 701.2044444 | T19: 2BD | U19: BD | V19: 66 | W19: 67 | X19: 43
A20: 16 | B20: E1 | C20: 00 | D20: 225 | E20: 0 | F20: 255 | G20: 255 | H20: 255 | I20: 255 | J20: 255 | K20: 255 | L20: 255 | M20: 255 | O20: :10E10000FF00FF00FF00FF00FF00FF00FF00FF0017 | Q20: FF FF FF FF FF FF FF FF | S20: 2281 | T20: =DEC2HEX(S20) -> 8E9 | U20: =RIGHT(T20,2) -> E9 | V20: =255-HEX2DEC(U20) -> 22 | W20: =V20+1 -> 23 | X20: =IF(W20=256,"00",DEC2HEX(W20,2)) -> 17
A21: 16 | B21: E1 | C21: 10 | D21: 225 | E21: 16 | F21: 255 | G21: 255 | H21: 255 | I21: 255 | J21: 255 | K21: 255 | L21: 255 | M21: 255 | O21: :10E11000FF00FF00FF00FF00FF00FF00FF00FF0007 | Q21: FF FF FF FF FF FF FF FF | S21: 2297 | T21: 8F9 | U21: F9 | V21: 6 | W21: 7 | X21: 07
A22: 16 | B22: E1 | C22: 20 | D22: 225 | E22: 32 | F22: 255 | G22: 255 | H22: 255 | I22: 255 | J22: 255 | K22: 255 | L22: 255 | M22: 255 | O22: :10E12000FF00FF00FF00FF00FF00FF00FF00FF00F7 | Q22: FF FF FF FF FF FF FF FF | S22: 2313 | T22: 909 | U22: 09 | V22: 246 | W22: 247 | X22: F7
A23: 16 | B23: E1 | C23: 30 | D23: 225 | E23: 48 | F23: 255 | G23: 255 | H23: 255 | I23: 255 | J23: 255 | K23: 255 | L23: 255 | M23: 255 | O23: :10E13000FF00FF00FF00FF00FF00FF00FF00FF00E7 | Q23: FF FF FF FF FF FF FF FF | S23: 2329 | T23: 919 | U23: 19 | V23: 230 | W23: 231 | X23: E7
A24: 16 | B24: E1 | C24: 40 | D24: 225 | E24: 64 | F24: 255 | G24: 255 | H24: 255 | I24: 255 | J24: 255 | K24: 255 | L24: 255 | M24: 255 | O24: :10E14000FF00FF00FF00FF00FF00FF00FF00FF00D7 | Q24: FF FF FF FF FF FF FF FF | S24: 2345 | T24: 929 | U24: 29 | V24: 214 | W24: 215 | X24: D7
A25: 16 | B25: E1 | C25: 50 | D25: 225 | E25: 80 | F25: 255 | G25: 255 | H25: 255 | I25: 255 | J25: 255 | K25: 255 | L25: 255 | M25: 255 | O25: :10E15000FF00FF00FF00FF00FF00FF00FF00FF00C7 | Q25: FF FF FF FF FF FF FF FF | S25: 2361 | T25: 939 | U25: 39 | V25: 198 | W25: 199 | X25: C7
A26: 16 | B26: E1 | C26: 60 | D26: 225 | E26: 96 | F26: 255 | G26: 255 | H26: 255 | I26: 255 | J26: 255 | K26: 255 | L26: 255 | M26: 255 | O26: :10E16000FF00FF00FF00FF00FF00FF00FF00FF00B7 | Q26: FF FF FF FF FF FF FF FF | S26: 2377 | T26: 949 | U26: 49 | V26: 182 | W26: 183 | X26: B7
A27: 16 | B27: E1 | C27: 70 | D27: 225 | E27: 112 | F27: 255 | G27: 255 | H27: 255 | I27: 255 | J27: 255 | K27: 255 | L27: 255 | M27: 255 | O27: :10E17000FF00FF00FF00FF00FF00FF00FF00FF00A7 | Q27: FF FF FF FF FF FF FF FF | S27: 2393 | T27: 959 | U27: 59 | V27: 166 | W27: 167 | X27: A7
A28: 16 | B28: E1 | C28: 80 | D28: 225 | E28: 128 | F28: 255 | G28: 255 | H28: 255 | I28: 255 | J28: 255 | K28: 255 | L28: 255 | M28: 255 | O28: :10E18000FF00FF00FF00FF00FF00FF00FF00FF0097 | Q28: FF FF FF FF FF FF FF FF | S28: 2409 | T28: 969 | U28: 69 | V28: 150 | W28: 151 | X28: 97
A29: 16 | B29: E1 | C29: 90 | D29: 225 | E29: 144 | F29: 255 | G29: 255 | H29: 255 | I29: 255 | J29: 255 | K29: 255 | L29: 255 | M29: 255 | O29: :10E19000FF00FF00FF00FF00FF00FF00FF00FF0087 | Q29: FF FF FF FF FF FF FF FF | S29: 2425 | T29: 979 | U29: 79 | V29: 134 | W29: 135 | X29: 87
A30: 16 | B30: E1 | C30: A0 | D30: 225 | E30: 160 | F30: 255 | G30: 255 | H30: 255 | I30: 255 | J30: 255 | K30: 255 | L30: 255 | M30: 255 | O30: :10E1A000FF00FF00FF00FF00FF00FF00FF00FF0077 | Q30: FF FF FF FF FF FF FF FF | S30: 2441 | T30: 989 | U30: 89 | V30: 118 | W30: 119 | X30: 77
A31: 16 | B31: E1 | C31: B0 | D31: 225 | E31: 176 | F31: 255 | G31: 255 | H31: 255 | I31: 255 | J31: 255 | K31: 255 | L31: 255 | M31: 255 | O31: :10E1B000FF00FF00FF00FF00FF00FF00FF00FF0067 | Q31: FF FF FF FF FF FF FF FF | S31: 2457 | T31: 999 | U31: 99 | V31: 102 | W31: 103 | X31: 67
A32: 16 | B32: E1 | C32: C0 | D32: 225 | E32: 192 | F32: 255 | G32: 255 | H32: 255 | I32: 255 | J32: 255 | K32: 255 | L32: 255 | M32: 255 | O32: :10E1C000FF00FF00FF00FF00FF00FF00FF00FF0057 | Q32: FF FF FF FF FF FF FF FF | S32: 2473 | T32: 9A9 | U32: A9 | V32: 86 | W32: 87 | X32: 57
A33: 16 | B33: E1 | C33: D0 | D33: 225 | E33: 208 | F33: 255 | G33: 255 | H33: 255 | I33: 255 | J33: 255 | K33: 255 | L33: 255 | M33: 255 | O33: :10E1D000FF00FF00FF00FF00FF00FF00FF00FF0047 | Q33: FF FF FF FF FF FF FF FF | S33: 2489 | T33: 9B9 | U33: B9 | V33: 70 | W33: 71 | X33: 47
A34: 16 | B34: E1 | C34: E0 | D34: 225 | E34: 224 | F34: 255 | G34: 255 | H34: 255 | I34: 255 | J34: 255 | K34: 255 | L34: 255 | M34: 255 | O34: :10E1E000FF00FF00FF00FF00FF00FF00FF00FF0037 | Q34: FF FF FF FF FF FF FF FF | S34: 2505 | T34: 9C9 | U34: C9 | V34: 54 | W34: 55 | X34: 37
A35: 16 | B35: E1 | C35: F0 | D35: 225 | E35: 240 | F35: 255 | G35: 255 | H35: 255 | I35: 255 | J35: 255 | K35: 255 | L35: 255 | M35: 255 | O35: :10E1F000FF00FF00FF00FF00FF00FF00FF00FF0027 | Q35: FF FF FF FF FF FF FF FF | S35: 2521 | T35: 9D9 | U35: D9 | V35: 38 | W35: 39 | X35: 27
F36: End of File | O36: :00000001FF
O40: The checksum value is the two's complement of the least significant byte (LSB) of the sum of all decoded byte values in the record that precede the checksum.
O41: It is computed by summing the decoded byte values, extracting the LSB of the sum, and calculating the two's complement of the LSB
O42: (e.g., by inverting its bits and adding one).
O43: For example, in the case of the record :0300300002337A1E, the sum of the decoded byte values is 03 + 00 + 30 + 00 + 02 + 33 + 7A = E2.
O44: The two's complement of E2 is 1E, which is the checksum appearing at the end of the record.
O46: Pour effectuer un complément à 2 il faut :
O47: - Inverser tout les bits (1 en 0, 0 en 1) (ou faire 255-chiffre) Ex: DECHEX(255-SOMME(B3:K3)+1) = DECHEX(255+1-SOMME(B3:K3)) = DECHEX(256-SOMME(B3:K3))
O48: puis ajouter 1 au résultat
O49: le complement a 2 de 0 est egal a 0
O50: Si 2 derniers chiffres de h100 = 00: cksum OK
O53: Méthode 1 (1er onglet)
O54: C'est la méthode bestiale. On convertit le nombre (positif) en base 2, puis on inverse les bits et ensuite on ajoute 1 avec propagation d'une éventuelle retenue.
O56: Méthode 2 (2ème onglet)
O57: On utilise la formule suivante pour le complément à 2: Si X est le nombre négatif à convertir, la conversion de (2^16)-|X| en base 2 donne le résultat.
B58: :10E000001B
B59: :BBAAAATTHHHHHH.....HHHHCC
B60: BB est le nombre d'octets de données dans la ligne (en hexadécimal)
B61: AAAA est l'adresse absolue (ou relative) du début de la lign
B62: TT est le champ spécifiant le type
B63: HH...HHHH est le champ des données | J63: 00, données, contient les données et l'adresse 16 bit.
B64: CC est l'octet de checksum. C'est le complément à deux de la somme des valeurs binaires des octets de tous les autres champs. (Les calculs sont faits sur 8 bits, en ignorant les retenues.)
B66: Pour vérifier la validité des données, il suffit de faire la somme de tous les octets représentés, à partir des deux-points jusqu'à la fin de ligne (checksum inclus: BB+AA+AA+TT+HH+...+CC): le résultat attendu est 0 (modulo 256).

Sheet Accuracy
A1: CYLINDRE: | B1: 1 | C1: cyl
A2: STROKES | B2: 2 | C2: stk
A3: ACCURACY | B3: 3.4 | C3: us
A5: RPM | B5: ERROR
A6: 0 | B6: 0
A7: 1000 | B7: =$B$3/((1000*(60*$B$2)/(2*$B$1*$A7))/0.36) -> 0.0204
A8: 2000 | B8: =$B$3/((1000*(60*$B$2)/(2*$B$1*$A8))/0.36) -> 0.0408
A9: 3000 | B9: 0.0612
A10: 4000 | B10: 0.0816
A11: 5000 | B11: 0.102
A12: 6000 | B12: 0.1224
A13: 7000 | B13: 0.1428
A14: 8000 | B14: 0.1632
A15: 9000 | B15: 0.1836
A16: 10000 | B16: 0.204

Sheet formules
C1: TEMPS | D1: CYLINDRE | E1: RPM | F1: FREQUENCE | G1: PERIODE | H1: PERIODE | I1: 1° | K1: durée = | L1: degrés | M1: relatif pickup
C2: Nbr | D2: Nbr | E2: tr/mn | F2: Hz | G2: ms | H2: pour 2cyl 2tps | I2: ms | J2: us | K2: us | M2: =Advance_curve!F5 -> 50
C3: 2 | D3: 1 | E3: 4000 | F3: =(2*$D$3*$E$3)/(60*$C$3) -> 66.66666667 | G3: =1000*(60*$C$3)/(2*$D$3*$E$3) -> 15 | H3: =1000*60/$E$3 -> 15 | I3: =G3/360 -> 0.04166666667 | J3: =G3/0.36 -> 41.66666667 | K3: 1884 | L3: =K3/J3 -> 45.216 | M3: =L3-Advance_curve!F5 -> -4.784
E5: =(60*$F$5*$C$3)/(2*$D$3) -> 7200 | F5: 120 | G5: =1000*(60*$C$3)/(2*$D$3*$E$5) -> 8.333333333 | H5: =1000*60/$E$5 -> 8.333333333 | I5: =G5/360 -> 0.02314814815 | J5: =G5/0.36 -> 23.14814815 | L5: FRQ = (2*CYL*RPM) / (60*TEMPS)
L6: RPM = (60*FRQ*TEMPS) / ( 2*CYL)
E7: Délai | F7: => | G7: Délai | H7: Avance | L7: 1degré = (1000*1000*60*CYL) / ( 2*TEMPS*RPM)/360
E8: us | G8: ° | H8: ° | L8: RPM= 60*1000000/ TMR1*256*presc/Fosc
E9: 1200 | G9: =E9/J3 -> 28.8 | H9: =Advance_curve!F5 -G9 -> 21.2 | L9: TMR1=(PER*Fosc)/ presc*255
L10: FRQ = 1/TMR1H = 1/TMR1H * (255 * PRES/Fosc) = 1*1000000 / TMR1H* (255 * PRES/Fosc)
E11: FRQ | F11: PERIODE | G11: RPM
E12: 6000 | F12: =1000/E12 -> 0.1666666667 | G12: =E12*60 -> 360000
B14: Multiplier | C14: Delay | D14: Prescaler | E14: Nombre de | F14: Nombre | G14: Fréquence | H14: Régime | I14: Période | K14: TIMER1 | L14: TMR1DEB | M14: Delay of: | O14: =IF(P17>0,"Avance","RETARD") -> RETARD | R14: a 4Mhz,Timer1 = periode(us) *255
E15: Cylindres | F15: de temps | K15: high | L15: nbr | O15: BTDC | R15: a 16Mhz,Timer1 = periode(us) *64 (256/4)
C16: us | G16: Hz | H16: tr/mn | I16: ms | J16: µs | K16: =IF(K17>256,"erreur","") -> erreur | M16: µs | N16: ms | O16: ms | P16: degrees
B17: 4 | C17: 20 | D17: =Advance_curve!O30 -> 8 | E17: 1 | F17: 2 | G17: 5.6 | H17: =(G17*60*F17)/(2*E17) -> 336 | I17: =1000/G17 -> 178.5714286 | J17: =1000000/G17 -> 178571.4286 | K17: =INT(J17/($D$17*64)) -> 348 | L17: =INT(K17/255) -> 1 | M17: =($C$17 *$K$17*$B$17) -> 27840 | N17: =M17/1000 -> 27.84 | O17: =(I17/360)*Advance_curve!F5 - N17 -> -3.038412698 | P17: =(360/I17)*O17 -> -6.12544
B21: http://syskb.com/creer-une-liste-deroulante-dans-excel-2010/
B23: TIMER 0 | H23: Timer1 | N23: F = (P/2)(N/60) => F=P*N/120
B24: Quartz a 4MHz | H24: Quartz a 4MHz | N24: N: rpm | P24: P: Number of poles
B25: - Fosc/4 or 4MHz/4 = 1MHz | H25: - Fosc/4 or 4MHz/4 = 1MHz
B26: - Prescaler sur 256 dans le registre T0CON | H26: - Prescaler sur 8 dans le registre T1CON | N26: Tension produite:
B27: - period of the frequency input to Timer 0 : | H27: - period of the frequency input to Timer 1 : | N27: Erms=(K * ω * N * θ ) / √2
B28: 1/(1MHz/256) = 256us | H28: 1/(1MHz/8) = 8us | N28: Erms=4,44 * K * F * N * θ | R28: K=0,85 a 0,95 coef de bobinage
B29: This is the period of time for each count in Timer 0 i.e. | H29: This is the period of time for each count in Timer 1 i.e.
B30: 256 * 256us = 65536us = 65.636ms = 15.26Hz | H30: 65536 * 8us = 525ms = 1,9Hz | N30: Courant produit:
N31: I = (θ * N) / L
B32: Lorsque TMR0=10, il s'est écoulé 10x256us = 2560us = 2,6ms.
B33: Si entre temps le moteur a fait 1 tour, c'est qu'il tourne a 2,56ms par tour
B34: pour trouver des tours/mn: en 1mn (soit 60sec * 1000 = 60000ms) | H34: Calculator:
B35: 60000/2,56 = 23437 RPM | H35: http://eng-serve.com/pic/pic_timer.html
B38: Conversion BIN to HEX:
B40: Position | C40: 8 | D40: 7 | E40: 6 | F40: 5 | G40: 4 | H40: 3 | I40: 2 | J40: 1
B41: numero | C41: 7 | D41: 6 | E41: 5 | F41: 4 | G41: 3 | H41: 2 | I41: 1 | J41: 0
B42: Puissance | C42: 2^3 | D42: 2^2 | E42: 2^1 | F42: 2^0 | G42: 2^3 | H42: 2^2 | I42: 2^1 | J42: 2^0
B43: Valeur 2x4bits | C43: 8 | D43: 4 | E43: 2 | F43: 1 | G43: 8 | H43: 4 | I43: 2 | J43: 1
B44: Binaire | C44: 0 | D44: 1 | E44: 1 | F44: 0 | G44: 1 | H44: 0 | I44: 1 | J44: 1
B45: Valeur | C45: =C44*C43 -> 0 | D45: =D44*D43 -> 4 | E45: 2 | F45: 0 | G45: 8 | H45: 0 | I45: 2 | J45: 1
B46: 2x4bits | C46: =C45+D45+E45+F45 -> 6 | G46: =G45+H45+I45+J45 -> 11
B47: Hexa 2x4bits | C47: =DEC2HEX(C46) -> 6 | G47: =DEC2HEX(G46) -> B
B48: Hexa | C48: =CONCATENATE(C47,G47) -> 6B

Sheet TIMERS
A1: 16F1847
B3: TIMER 0 et TIMER2/4/6
B4: Quartz a 4MHz | H4: Clock = | I4: 16 | J4: MHz | L4: 4MHz
B5: - Fosc/4 or 4MHz/4 = 1MHz | H5: Instruction clock = | I5: =I4/4 -> 4 | J5: MHz
B6: - Prescaler sur 256 dans le registre T0CON | H6: Instruction clock = | I6: =1/I5 -> 0.25 | J6: us
B7: - period of the frequency input to Timer 0 :
B8: 1/(1MHz/256) = 256us | H8: Prescaler Timer0 de 8bits | I8: 256 | L8: 256
B9: This is the period of time for each count in Timer 0 i.e. | H9: Periode Timer0 | I9: =(I8/$I$5) -> 64 | J9: µs
B10: 256 * 256us = 65536us = 65.636ms = 15.26Hz | H10: Débordement TMR0 | I10: =256*I9 -> 16384 | J10: µs
H11: Frq débordement TMR0 | I11: =1000000/I10 -> 61.03515625 | J11: Hz
B12: Lorsque TMR0=10, il s'est écoulé 10x256us = 2560us = 2,6ms. | H12: Incrément de TMR0H | I12: =I10/1000 -> 16.384 | J12: ms | L12: 65,54ms
B13: Si entre temps le moteur a fait 1 tour, c'est qu'il tourne a 2,56ms par tour
B14: pour trouver des tours/mn: en 1mn (soit 60sec * 1000 = 60000ms)
B15: 60000/2,56 = 23437 RPM | H15: Prescaler Timer1 de 16bits | I15: 8 | L15: 2
H16: Periode Timer1L | I16: =(I15/$I$5) -> 2 | J16: µs
B17: Timer1 | H17: Periode Timer1H | I17: =(I16*256) -> 512 | J17: µs
B18: Quartz a 4MHz | H18: Débordement TMR1 | I18: =65636*I16 -> 131272 | J18: µs | K18: =I18/1000 -> 131.272 | L18: ms
B19: - Fosc/4 or 4MHz/4 = 1MHz | H19: Frq débordement TMR1 | I19: =1000000/I18 -> 7.617770736 | J19: Hz | L19: 7,62hz
B20: - Prescaler sur 8 dans le registre T1CON
B21: - period of the frequency input to Timer 1 :
B22: 1/(1MHz/8) = 8us
B23: This is the period of time for each count in Timer 1 i.e. | H23: Prescaler Timer2 de 8bits | I23: 1 | L23: 1
B24: 65536 * 8us = 525ms = 1,9Hz | H24: Periode Timer2 | I24: =(I23/$I$5) -> 0.25 | J24: µs
H25: Débordement TMR2 | I25: =256*I24 -> 64 | J25: µs
B26: Calculator: | H26: Frq débordement TMR2 | I26: =1000000/I25 -> 15625 | J26: Hz | L26: 3906Hz
B27: http://eng-serve.com/pic/pic_timer.html
B30: ================== TIMER1 ================
B31: Compteur 16bits, donc 65536 max. 1 increment par us
B33: Avec Clock 4MHz:
B34: PRESC=1 => TMR1H s'incremente de 1 en 256us, deborde toutes les 65ms
B35: PRESC=2 => TMR1H s'incremente de 1 en 512us, deborde ici toutes les 131ms
B36: PRESC=4 => TMR1H s'incremente de 1 en 1024us, deborde ici toutes les 262ms
B37: PRESC=8 => TMR1H s'incremente de 1 en 2048us, deborde ici toutes les 525ms
B39: Avec Clock 16MHz:
B40: PRESC=1 => TMR1H s'incrémente de 1 en 64us. Déborde en 16ms
B41: PRESC=2 => TMR1H s'incrémente de 1 en 128us. Déborde en 32ms <===
B42: PRESC=4 => TMR1H s'incrémente de 1 en 256us. Déborde en 65ms
B43: PRESC=8 => TMR1H s'incrémente de 1 en 512us. Déborde en 131ms

Sheet Calculs
A2: - Tant que pickup est bas (=0) 99% du temps, on met la valeur du TIMER0 dans la variable PERL (PERiode Low)
A3: - Chaque fois que TIMER0 provoque une INTerruption de debordement lorsqu'il arrive a 255, dans la routine d'interruption on incremente TMR0H (TIMER0 High)
A4: - Quand le pickup est haut (=1) (pulse) :
A5: - on memorise la valeur de TMR0H (Nbr de debordements de TIMER0), dans PERH (PERiode High)
A6: - et on memorise aussi la valeur du TIMER0 dans la variable PERL.
A7: - puis on RAZ les timers,
A9: - Ainsi la durée ecoulé entre 2 pickups est stockée dans PERL et PERH. Soit : (PERH x 255 ) + PERL
A11: Avec Q=4MHz, Prescaler = 256 et Preset = 0
A12: TIMER0 s'incremente toutes les 256us et deborde toutes les 256x256= 65536us = 65,5ms = 15,25Hz
A13: (utiliser: E:\Pic\Exemples\pic_calculations.xls)
A14: - donc [ (PERH * 255 ) + PERL ] * 65,5ms = durée entre 2 pulses.
A16: - Dans le soft:
A17: - on regarde si PERH est > a une certaine valeur, auquel cas le moteur tourne très lentement
A18: - on regarde si PERL est < a une certaine valeur, auquel cas le moteur tourne trop vite => arret des sparks pour limiter le regime
A19: - on regarde si PERL est < a une certaine valeur, auquel cas le moteur tourne très vite => spark immediat (sans avance)
A20: - entre ces 2 limites, on lit un tableau qui retourne un chiffre (delay) pour chacune des 95 valeurs de PERL
A21: - ce DELAY est le temps d'attente (nbr de boucles d'atttente) avant d'envoyer le spark
A23: Propriete de l'interruption:
F26: Liste deroulante
F27: selectionner la cellule
F28: donnees> validité des données> validite des donnees > afficher: liste
A38: A 15,4Hz = 924RPM, il faut 64935us pour faire un tour, donc TIMER0 a le temps d'aller jusqu’à 254 et de presque deborder:

Sheet Dwell variable
D2: coef: | E2: DWELL = PERIODE * 50
B3: =Advance_curve!B8 -> TIMER1H count | D3: 50
B4: =Advance_curve!B9 -> 23 | C4: =$D$3*Advance_curve!B9 -> 1150 | D4: µs
B5: =Advance_curve!B10 -> 24 | C5: =$D$3*Advance_curve!B10 -> 1200
B6: =Advance_curve!B11 -> 25 | C6: =$D$3*Advance_curve!B11 -> 1250
B7: =Advance_curve!B12 -> 26 | C7: =$D$3*Advance_curve!B12 -> 1300
B8: =Advance_curve!B13 -> 27 | C8: =$D$3*Advance_curve!B13 -> 1350
B9: =Advance_curve!B14 -> 28 | C9: =$D$3*Advance_curve!B14 -> 1400
B10: =Advance_curve!B15 -> 29 | C10: =$D$3*Advance_curve!B15 -> 1450
B11: =Advance_curve!B16 -> 30 | C11: =$D$3*Advance_curve!B16 -> 1500
B12: =Advance_curve!B17 -> 31 | C12: =$D$3*Advance_curve!B17 -> 1550
B13: =Advance_curve!B18 -> 32 | C13: =$D$3*Advance_curve!B18 -> 1600
B14: =Advance_curve!B19 -> 33 | C14: =$D$3*Advance_curve!B19 -> 1650
B15: =Advance_curve!B20 -> 34 | C15: =$D$3*Advance_curve!B20 -> 1700
B16: =Advance_curve!B21 -> 35 | C16: =$D$3*Advance_curve!B21 -> 1750
B17: =Advance_curve!B22 -> 36 | C17: =$D$3*Advance_curve!B22 -> 1800
B18: =Advance_curve!B23 -> 37 | C18: =$D$3*Advance_curve!B23 -> 1850
B19: =Advance_curve!B24 -> 38 | C19: =$D$3*Advance_curve!B24 -> 1900
B20: =Advance_curve!B25 -> 39 | C20: =$D$3*Advance_curve!B25 -> 1950
B21: =Advance_curve!B26 -> 40 | C21: =$D$3*Advance_curve!B26 -> 2000
B22: =Advance_curve!B27 -> 41 | C22: =$D$3*Advance_curve!B27 -> 2050
B23: =Advance_curve!B28 -> 42 | C23: =$D$3*Advance_curve!B28 -> 2100
B24: =Advance_curve!B29 -> 43 | C24: =$D$3*Advance_curve!B29 -> 2150
B25: =Advance_curve!B30 -> 44 | C25: =$D$3*Advance_curve!B30 -> 2200
B26: =Advance_curve!B31 -> 45 | C26: =$D$3*Advance_curve!B31 -> 2250
B27: =Advance_curve!B32 -> 46 | C27: =$D$3*Advance_curve!B32 -> 2300
B28: =Advance_curve!B33 -> 47 | C28: =$D$3*Advance_curve!B33 -> 2350
B29: =Advance_curve!B34 -> 48 | C29: =$D$3*Advance_curve!B34 -> 2400
B30: =Advance_curve!B35 -> 49 | C30: =$D$3*Advance_curve!B35 -> 2450
B31: =Advance_curve!B36 -> 50 | C31: =$D$3*Advance_curve!B36 -> 2500
B32: =Advance_curve!B37 -> 51 | C32: =$D$3*Advance_curve!B37 -> 2550
B33: =Advance_curve!B38 -> 52 | C33: =$D$3*Advance_curve!B38 -> 2600
B34: =Advance_curve!B39 -> 53 | C34: =$D$3*Advance_curve!B39 -> 2650
B35: =Advance_curve!B40 -> 54 | C35: =$D$3*Advance_curve!B40 -> 2700
B36: =Advance_curve!B41 -> 55 | C36: =$D$3*Advance_curve!B41 -> 2750
B37: =Advance_curve!B42 -> 56 | C37: =$D$3*Advance_curve!B42 -> 2800
B38: =Advance_curve!B43 -> 57 | C38: =$D$3*Advance_curve!B43 -> 2850
B39: =Advance_curve!B44 -> 58 | C39: =$D$3*Advance_curve!B44 -> 2900
B40: =Advance_curve!B45 -> 59 | C40: =$D$3*Advance_curve!B45 -> 2950
B41: =Advance_curve!B46 -> 60 | C41: =$D$3*Advance_curve!B46 -> 3000
B42: =Advance_curve!B47 -> 61 | C42: =$D$3*Advance_curve!B47 -> 3050
B43: =Advance_curve!B48 -> 62 | C43: =$D$3*Advance_curve!B48 -> 3100
B44: =Advance_curve!B49 -> 63 | C44: =$D$3*Advance_curve!B49 -> 3150
B45: =Advance_curve!B50 -> 64 | C45: =$D$3*Advance_curve!B50 -> 3200
B46: =Advance_curve!B51 -> 65 | C46: =$D$3*Advance_curve!B51 -> 3250
B47: =Advance_curve!B52 -> 66 | C47: =$D$3*Advance_curve!B52 -> 3300
B48: =Advance_curve!B53 -> 67 | C48: =$D$3*Advance_curve!B53 -> 3350
B49: =Advance_curve!B54 -> 68 | C49: =$D$3*Advance_curve!B54 -> 3400
B50: =Advance_curve!B55 -> 69 | C50: =$D$3*Advance_curve!B55 -> 3450
B51: =Advance_curve!B56 -> 70 | C51: =$D$3*Advance_curve!B56 -> 3500
B52: =Advance_curve!B57 -> 71 | C52: =$D$3*Advance_curve!B57 -> 3550
B53: =Advance_curve!B58 -> 72 | C53: =$D$3*Advance_curve!B58 -> 3600
B54: =Advance_curve!B59 -> 73 | C54: =$D$3*Advance_curve!B59 -> 3650
B55: =Advance_curve!B60 -> 74 | C55: =$D$3*Advance_curve!B60 -> 3700
B56: =Advance_curve!B61 -> 75 | C56: =$D$3*Advance_curve!B61 -> 3750
B57: =Advance_curve!B62 -> 76 | C57: =$D$3*Advance_curve!B62 -> 3800
B58: =Advance_curve!B63 -> 77 | C58: =$D$3*Advance_curve!B63 -> 3850
B59: =Advance_curve!B64 -> 78 | C59: =$D$3*Advance_curve!B64 -> 3900
B60: =Advance_curve!B65 -> 79 | C60: =$D$3*Advance_curve!B65 -> 3950
B61: =Advance_curve!B66 -> 80 | C61: =$D$3*Advance_curve!B66 -> 4000
B62: =Advance_curve!B67 -> 81 | C62: =$D$3*Advance_curve!B67 -> 4050
B63: =Advance_curve!B68 -> 82 | C63: =$D$3*Advance_curve!B68 -> 4100
B64: =Advance_curve!B69 -> 83 | C64: =$D$3*Advance_curve!B69 -> 4150
B65: =Advance_curve!B70 -> 84 | C65: =$D$3*Advance_curve!B70 -> 4200
B66: =Advance_curve!B71 -> 85 | C66: =$D$3*Advance_curve!B71 -> 4250
B67: =Advance_curve!B72 -> 86 | C67: =$D$3*Advance_curve!B72 -> 4300
B68: =Advance_curve!B73 -> 87 | C68: =$D$3*Advance_curve!B73 -> 4350
B69: =Advance_curve!B74 -> 88 | C69: =$D$3*Advance_curve!B74 -> 4400
B70: =Advance_curve!B75 -> 89 | C70: =$D$3*Advance_curve!B75 -> 4450
B71: =Advance_curve!B76 -> 90 | C71: =$D$3*Advance_curve!B76 -> 4500
B72: =Advance_curve!B77 -> 91 | C72: =$D$3*Advance_curve!B77 -> 4550
B73: =Advance_curve!B78 -> 92 | C73: =$D$3*Advance_curve!B78 -> 4600
B74: =Advance_curve!B79 -> 93 | C74: =$D$3*Advance_curve!B79 -> 4650
B75: =Advance_curve!B80 -> 94 | C75: =$D$3*Advance_curve!B80 -> 4700
B76: =Advance_curve!B81 -> 95 | C76: =$D$3*Advance_curve!B81 -> 4750
B77: =Advance_curve!B82 -> 96 | C77: =$D$3*Advance_curve!B82 -> 4800
B78: =Advance_curve!B83 -> 97 | C78: =$D$3*Advance_curve!B83 -> 4850
B79: =Advance_curve!B84 -> 98 | C79: =$D$3*Advance_curve!B84 -> 4900
B80: =Advance_curve!B85 -> 99 | C80: =$D$3*Advance_curve!B85 -> 4950
B81: =Advance_curve!B86 -> 100 | C81: =$D$3*Advance_curve!B86 -> 5000
B82: =Advance_curve!B87 -> 101 | C82: =$D$3*Advance_curve!B87 -> 5050
B83: =Advance_curve!B88 -> 102 | C83: =$D$3*Advance_curve!B88 -> 5100
B84: =Advance_curve!B89 -> 103 | C84: =$D$3*Advance_curve!B89 -> 5150
B85: =Advance_curve!B90 -> 104 | C85: =$D$3*Advance_curve!B90 -> 5200
B86: =Advance_curve!B91 -> 105 | C86: =$D$3*Advance_curve!B91 -> 5250
B87: =Advance_curve!B92 -> 106 | C87: =$D$3*Advance_curve!B92 -> 5300
B88: =Advance_curve!B93 -> 107 | C88: =$D$3*Advance_curve!B93 -> 5350
B89: =Advance_curve!B94 -> 108 | C89: =$D$3*Advance_curve!B94 -> 5400
B90: =Advance_curve!B95 -> 109 | C90: =$D$3*Advance_curve!B95 -> 5450
B91: =Advance_curve!B96 -> 110 | C91: =$D$3*Advance_curve!B96 -> 5500
B92: =Advance_curve!B97 -> 111 | C92: =$D$3*Advance_curve!B97 -> 5550
B93: =Advance_curve!B98 -> 112 | C93: =$D$3*Advance_curve!B98 -> 5600
B94: =Advance_curve!B99 -> 113 | C94: =$D$3*Advance_curve!B99 -> 5650
B95: =Advance_curve!B100 -> 114 | C95: =$D$3*Advance_curve!B100 -> 5700
B96: =Advance_curve!B101 -> 115 | C96: =$D$3*Advance_curve!B101 -> 5750
B97: =Advance_curve!B102 -> 116 | C97: =$D$3*Advance_curve!B102 -> 5800
B98: =Advance_curve!B103 -> 117 | C98: =$D$3*Advance_curve!B103 -> 5850

Sheet Version
A4: v7.9r13c2 | B4: [HARD] Correction RA1 forcé a 1, car pullup R5 sur PCB
A5: v7.9r13c3 | B5: [XLS] Valeur de dwell passe de 2 choix (500,1000) a 6 choix (500,1000,2000,3000,4000,5000).
A6: v7.9r14c0 | B6: [SOFT,XLS] Ajout d'une valeur de dwell "AUTO" pour lequel la durée de dwell est proportionnelle a PERIODE.
A7: v7.9r14c1 | B7: [SOFT] Code protection OFF
A8: v7.9r15c0 | B8: [XLS] La vlaleur d'avance affichée dans l'onglet "advance_at_lowRPM" ne prenait pas en compte la position du pickup, c'était donc une valeur RELATIVE, pas ABSOLUE. Multiplicateur peut descendre a 1 (soft OK)
B9: [SOFT] si JP2 a la masse alors PIC bypass la courbe d'avance et envoi spark dés que detection front descendant du pickup
B10: [SOFT] RB3 (ex TP2) n'était pas forcé en OUTPUT
B11: [HARD] Suppression TP2 inutile
B12: [HARD] Reduction R7 de 330 a 180 (Sinon ne declenche pas les SCR de type BTA).
B13: [HARD] Suppression C9-100n car courant d'appel dépasse Imax du PIC
A14: v7.9r16c0 | B14: [XLS] La valeur d'avance affichée dans l'onglet "advance_at_lowRPM" était fausse.
B15: [SOFT] boucles d'attente pkp haut et bas en ASM: Precision x10 !!
B16: [XLS] Ajout documentation onglet README
A17: v7.9r16c1 | B17: [XLS] Tuning: a low RPM, le PIC attend 4us x PERIODE mais en vrai bcl dure plus de 4us, du coup il y a un offset de 5deg (20° affiché et 15° reels) pour simplifier correction: la valeur delay (I1) passe de 4 a 4.4
B18: [SOFT] Calibration de la boucle 40us
A19: v7.9r17c0 | B19: [XLS] Ajout d'un Rev Limiter a l'adresse Eprom 121 si swich JP2 a la masse
B20: [SOFT] JP2 (ex Bypass curve) est utilisé pour activer une limitation de RPM inferieur au maxi et stocké en @121 de l'eprom (Scooter légal)
A21: v7.9r17c1 | B21: [XLS] Renommage en accord avec code. Ajout RPM mini dans le titre onglet low_rpm
A22: v7.9r18c0 | B22: [XLS] Ajout d'un délai at Kick Start selectionnable par le user
B23: [SOFT] Si TMR1 déborde, PIC attend une pause de Nbr débordements * VLRPM qui a été définie par le user et écrite en eprom. Sinon spark immediate entre 0 et 480RPM car TMR1 = 0 = croit que RPM élévés
A24: v7.9r21c0 | B24: [SOFT] horloge passe de 4 a 16MHz (*4), Prescaler passe de 2 a 8 pour conserver meme valeurs de PERIODE, Boucles ASM de 100,40,20us contiennent 4 fois plus de NOP pour conserver meme durées
B25: [XLS] comme horloge passe de 4 a 16MHz (*4), incompressible delai passe de 72 a 18 (/4) (non verifié), cellule I5
B26: [XLS] Prescaler par defaut = 8 (au lieu de 2) cellule O26
B27: [XLS] et modif calcul RPM cellule C9 ($B9*64 au lieu $B9*255)
B28: [XLS] Ajout d'une colonne correction pour diminuer le nbr de boucle a haut RPM car FC ajoute un certain temps a chaque bcl ASM du coup la durée est variable selon le nbr de bcl
A29: v7.9r3c1 | B29: [XLS] Ajout colonne MCH format pour Eprom sous MPLAB
B30: [XLS] Correction calcul TMR1H dans "advance_at_lowRPM" car 16MHz (PER/PRESC*64) Pour 4MHz: PER/PRESC/256)
B31: [XLS] Suppression Rev limiter avec JP2 et suppression VLRPM d'une durée fixe
B32: [XLS] Adv_low_rpm modification: affichage ligne droite jusqu'au mini lié a la limitiation du nbr de débord TMR1 (42 a 332rpm)
B33: [SOFT] Variable VLRPM contient maintenant le temps en ms a attendre avant spark pour chaque débord TMR1 de manière a avoir une avance de 0°BTDC
A34: v7.9r4c0 | B34: [XLS] Ajout du type DC ou AC dans le contenu de l'eprom avec la version
B35: [XLS] Ajout step de 200us pour autoriser pickup position > 180°
B36: [XLS] Correction calcul Correcteur. Ne fonctionnait pas pour step de 100 or 200us
B37: [SOFT] Ajout step de 200us pour autoriser pickup position > 180°
A38: v7.9r5c0 | B38: [XLS] Pas de changement , juste renommage en v79r5. Effacement du nom 16F1847 car meme fichier xls pour 1827,1825, Modif des Warning colonne M et du warning recap en F6. Affichage précis du range modifiable dans "advance_lowrpm"
B39: [SOFT] Portage sur 16F1827 plus courant.
A40: v7.9r6c0 | B40: [SOFT] Apres 1.2sec sans pulse, PWM s'arrete: conso chute de 0.2w a 0.02w. Reduction PWM mini au demarrage a 10%. DC passe de 40 a 80% pour augmenter tension de sortie.
A41: v7.9r7c0 | B41: [SOFT] Remplacement des bcl 100 & 200us par de l'ASM. Il faut utiliser INT pour eviter que PIC saute des pkp lorque il y a synchro aleatoire entre pickup et PIC qui revient attendre un rising edge. Si le pkp est a 1, PIC le saute.
A42: v7.9r7c1 | B42: [SOFT] RAZ TMR1DEB dans 1er tour mesure. Deplacement IOC avant le 1er tour moteur. Correction: pas de spark a 7.5Hz/447Hz et 200Hz car DEB=1 et PER=0 donc no spark!=> Forcage de PERIODE a TMR1min (ne pas mettre 1 sinon no spark). /!\ Arret INT avant boucle TMR1DEB remise a la fin pour pas interrompre provoque 1000 a 4000 = -180° env
A43: v7.9r7c2 | B43: [SOFT] Retrait de l'arret INT avant boucle TMR1DEB car INT semble ne pas se réactiver ensuite....! /!\MCLR doit etre disable dans Options sinon reboot en boucle. DEFAUT: Si pickup est long et délai court, PIC envoi 2 spark durant pickup ! Mettre dans Main en tout 1er une bcl ASM pkp until 1
A44: v7.9r7c3 | B44: [SOFT] Correction: Rajout d'une bcl ASM d'attente de fin de niveau haut. Indispensable si pickup a 1 long et délai court: le PIC revient apres la spark, voit niveau 1 et rapplique délai et nouvelle spark : DEFAUT: a 8Hz, 10Hz le PIC saute des pickup. (cause pbl entre PWM et TIMER? ou pbl d'INT?) Palliatif: Remplacement de PWM 20% pas MOSFET forcé a 1 entre pkp et spark. Soft reste en bcl si pkp longtemps a 0 ou a 1: Ajout d'un FLAGDELAI pour ne pas rafraichir TMR1DEB. TMR1DEB limité a 40/PRESCALER au lieu de 10 fixe. Ajout d'un FLAGSPARK pour eviter 2 sparks si deja fait.
A45: v7.9r7c4 | B45: [SOFT] Pas de spark entre 470-1000rpm: Venait de PWM Enable/Disable laisse la sortie à 1 en haute impédance. (Incapable de fournir du courant au Mosfet) Modif: Converter ON entre spark et pickup. Imbrication des 2 controles "DEB TMR1" et "LOW_RPM" car il y avait passage dans les 2 a la suite et donc 2 sparks (car pas de lecture du FLAG dans le 2em).
A46: v7.9r7c5 | B46: [SOFT] Apres qq minutes le DC converter s'arrete (surchauffe?) Modif: Converter ON entre pickup et spark(durant délai) au lieu de spark et pickup: bien + court, chauffe -. Deplacement config TMR1 dans une macro (non testé)
A47: v7.9r7c6 | B47: [SOFT] Pas d'etincelle. DC converter pas alimenté assez longtemps selon valeur délai. Modif: Converter ON entre spark et pickup AVEC 50ms d'attente de fin spark pour eviter converter ON sur CC
B48: [XLS] Pas de modif mais renommage version
A49: v7.9r7c7 | B49: [XLS] Modif choix 2,4 stk wasted spark
B50: [XLS] Correction. Le temps en us pour 1° changeait selon 2 ou 4tps ! (faux en 4)
A51: v7.9r7c8 | B51: [XLS] Ajout de la duree d'hysteresis 400us qui décalle le debut du délai avance. Cell I5
B52: [XLS] Modif formule colonne I si < incompressible alors "0"
B53: [XLS] Ajout possibilité décaller VLRPM meme feuille protegée
B54: [XLS] Correction Hash checksum
B55: [XLS] Calibrage MPLAB délai incompressible: 25us + 365us de RB4_INT, RAS de la colonne calibration. Pas besoin pour l'instant
A56: v7.9r7c9 | B56: [XLS] 50 trials dans version Free
B57: [XLS] Report nbr de temps 2/4 dans eeprom K18
B58: [SOFT] [XLS] Choix clignotement led au startup o/n
B59: [XLS] y=2,42+5,18E-3*x
A60: v7.9r7c10 | B60: [XLS] ERROR N°2: dans adv_low_rpm a 10Hz/600rpm il est censé y avoir délai: 10ms mais 50ms en vrai !!
B61: [XLS] Correction dans le calcul de la valeur de TMR1h qui ne tenait pas compte de la clock!
A62: v7.9r7c11 | B62: [XLS] Correction, la colonne FRQ devait etre calculée d'apres TMR1 et non d'apres RPM. Maintenant c'est logique si on change 2tps ou 4tps

Sheet Excel
A3: Conversion de valeurs: | C3: =SI(I2=2;2;(SI(I2=3;3;(SI(I2=4;4;(SI(I2=5;5;(SI(I2=6;6)))))))))
A5: Liste deroulante: | C5: Donnees> Validite des donnees
A8: les graphes n'affichent pas la valeur #N/A , utiliser #N/A pour faire disparaitre les points du graphe
A10: Pour afficher les liens d'une cellule: selectionnez-la > Formule > Reperer les antécédents/dependants

Sheet calibrage
B2: RPM | C2: HZ | D2: ms | E2: us | F2: 1° | G2: XLS | H2: nb loop | I2: Tester | J2: Ecart | K2: Ecart | L2: Ecart/loop
A3: 1 | B3: 1000 | C3: =(2*formules!$D$3*B3)/(60*formules!$C$3) -> 16.66666667 | D3: =1000*(60*formules!$C$3)/(2*formules!$D$3*B3) -> 60 | E3: =D3*1000 -> 60000 | F3: us | G3: °btdc | I3: °btdc | J3: ° | K3: us | L3: us
A4: 2 | B4: 1500 | C4: =(2*formules!$D$3*B4)/(60*formules!$C$3) -> 25 | D4: =1000*(60*formules!$C$3)/(2*formules!$D$3*B4) -> 40 | E4: =D4*1000 -> 40000
A5: 3 | B5: 2000 | C5: =(2*formules!$D$3*B5)/(60*formules!$C$3) -> 33.33333333 | D5: =1000*(60*formules!$C$3)/(2*formules!$D$3*B5) -> 30 | E5: 30000
A6: 4 | B6: 2500 | C6: =(2*formules!$D$3*B6)/(60*formules!$C$3) -> 41.66666667 | D6: =1000*(60*formules!$C$3)/(2*formules!$D$3*B6) -> 24 | E6: 24000
A7: 5 | B7: 3000 | C7: =(2*formules!$D$3*B7)/(60*formules!$C$3) -> 50 | D7: =1000*(60*formules!$C$3)/(2*formules!$D$3*B7) -> 20 | E7: 20000 | F7: 56 | G7: 34 | H7: 36 | I7: 27 | J7: =G7-I7 -> 7 | K7: =J7*F7 -> 392 | L7: =K7/H7 -> 10.88888889
A8: 6 | B8: 3500 | C8: =(2*formules!$D$3*B8)/(60*formules!$C$3) -> 58.33333333 | D8: =1000*(60*formules!$C$3)/(2*formules!$D$3*B8) -> 17.14285714 | E8: 17142.85714
A9: 7 | B9: 4000 | C9: =(2*formules!$D$3*B9)/(60*formules!$C$3) -> 66.66666667 | D9: =1000*(60*formules!$C$3)/(2*formules!$D$3*B9) -> 15 | E9: 15000
A10: 8 | B10: 4500 | C10: =(2*formules!$D$3*B10)/(60*formules!$C$3) -> 75 | D10: =1000*(60*formules!$C$3)/(2*formules!$D$3*B10) -> 13.33333333 | E10: 13333.33333
A11: 9 | B11: 5000 | C11: =(2*formules!$D$3*B11)/(60*formules!$C$3) -> 83.33333333 | D11: =1000*(60*formules!$C$3)/(2*formules!$D$3*B11) -> 12 | E11: 12000 | F11: 33 | G11: 43 | H11: 13 | I11: 33 | J11: =G11-I11 -> 10 | K11: =J11*F11 -> 330 | L11: =K11/H11 -> 25.38461538
A12: 10 | B12: 5500 | C12: =(2*formules!$D$3*B12)/(60*formules!$C$3) -> 91.66666667 | D12: =1000*(60*formules!$C$3)/(2*formules!$D$3*B12) -> 10.90909091 | E12: 10909.09091
A13: 11 | B13: 6000 | C13: =(2*formules!$D$3*B13)/(60*formules!$C$3) -> 100 | D13: =1000*(60*formules!$C$3)/(2*formules!$D$3*B13) -> 10 | E13: 10000
A14: 12 | B14: 6500 | C14: =(2*formules!$D$3*B14)/(60*formules!$C$3) -> 108.3333333 | D14: =1000*(60*formules!$C$3)/(2*formules!$D$3*B14) -> 9.230769231 | E14: 9230.769231
A15: 13 | B15: 7000 | C15: =(2*formules!$D$3*B15)/(60*formules!$C$3) -> 116.6666667 | D15: =1000*(60*formules!$C$3)/(2*formules!$D$3*B15) -> 8.571428571 | E15: 8571.428571 | F15: 24 | G15: 47 | H15: 7 | I15: 34 | J15: =G15-I15 -> 13 | K15: =J15*F15 -> 312 | L15: =K15/H15 -> 44.57142857
A16: 14 | B16: 7500 | C16: =(2*formules!$D$3*B16)/(60*formules!$C$3) -> 125 | D16: =1000*(60*formules!$C$3)/(2*formules!$D$3*B16) -> 8 | E16: 8000
A17: 15 | B17: 8000 | C17: =(2*formules!$D$3*B17)/(60*formules!$C$3) -> 133.3333333 | D17: =1000*(60*formules!$C$3)/(2*formules!$D$3*B17) -> 7.5 | E17: 7500
A18: 16 | B18: 8500 | C18: =(2*formules!$D$3*B18)/(60*formules!$C$3) -> 141.6666667 | D18: =1000*(60*formules!$C$3)/(2*formules!$D$3*B18) -> 7.058823529 | E18: 7058.823529
A19: 17 | B19: 9000 | C19: =(2*formules!$D$3*B19)/(60*formules!$C$3) -> 150 | D19: =1000*(60*formules!$C$3)/(2*formules!$D$3*B19) -> 6.666666667 | E19: 6666.666667
A20: 18 | B20: 9500 | C20: =(2*formules!$D$3*B20)/(60*formules!$C$3) -> 158.3333333 | D20: =1000*(60*formules!$C$3)/(2*formules!$D$3*B20) -> 6.315789474 | E20: 6315.789474
A21: 19 | B21: 10000 | C21: =(2*formules!$D$3*B21)/(60*formules!$C$3) -> 166.6666667 | D21: =1000*(60*formules!$C$3)/(2*formules!$D$3*B21) -> 6 | E21: 6000
A22: 20 | B22: 10500 | C22: =(2*formules!$D$3*B22)/(60*formules!$C$3) -> 175 | D22: =1000*(60*formules!$C$3)/(2*formules!$D$3*B22) -> 5.714285714 | E22: 5714.285714
A23: 21 | B23: 11000 | C23: =(2*formules!$D$3*B23)/(60*formules!$C$3) -> 183.3333333 | D23: =1000*(60*formules!$C$3)/(2*formules!$D$3*B23) -> 5.454545455 | E23: 5454.545455
A24: 22 | B24: 11500 | C24: =(2*formules!$D$3*B24)/(60*formules!$C$3) -> 191.6666667 | D24: =1000*(60*formules!$C$3)/(2*formules!$D$3*B24) -> 5.217391304 | E24: 5217.391304
A25: 23 | B25: 12000 | C25: =(2*formules!$D$3*B25)/(60*formules!$C$3) -> 200 | D25: =1000*(60*formules!$C$3)/(2*formules!$D$3*B25) -> 5 | E25: 5000
A26: 24 | B26: 12500 | C26: =(2*formules!$D$3*B26)/(60*formules!$C$3) -> 208.3333333 | D26: =1000*(60*formules!$C$3)/(2*formules!$D$3*B26) -> 4.8 | E26: 4800
A27: 25 | B27: 13000 | C27: =(2*formules!$D$3*B27)/(60*formules!$C$3) -> 216.6666667 | D27: =1000*(60*formules!$C$3)/(2*formules!$D$3*B27) -> 4.615384615 | E27: 4615.384615
A28: 26 | B28: 13500 | C28: =(2*formules!$D$3*B28)/(60*formules!$C$3) -> 225 | D28: =1000*(60*formules!$C$3)/(2*formules!$D$3*B28) -> 4.444444444 | E28: 4444.444444
A29: 27 | B29: 14000 | C29: =(2*formules!$D$3*B29)/(60*formules!$C$3) -> 233.3333333 | D29: =1000*(60*formules!$C$3)/(2*formules!$D$3*B29) -> 4.285714286 | E29: 4285.714286
B32: Temps incompressible a 4MHz: | E32: avec délai = 0 dans l'eprom, il faut 71us entre la detection pickup haut et spark
E33: avec délai = 1 dans l'eprom, il faut 91us entre la detection pickup haut et spark (soit 71us +20us)
B35: Temps incompressible a 16MHz: | E35: avec délai = 0 dans l'eprom, il faut 50us entre la detection pickup haut et spark
E36: Pas verifié. On suppose que c'est 71us / 4 = 18us

Sheet Error
B1: prescaler: 8 | C1: step 40us | D1: data= ZERO | E1: Pkp position: 60
P4: En theorie la ligne devrait etre droite a 60°
O5: 1000|12,96 | P5: il y a un délai FIXE de 250us c'est le temps de démarrage du DC converter du Tester v5
O6: 1200|58,24
O7: 1400|57,99
O8: 1600|57,71
O10: 2000|57,26
O11: 2200|56,84
O12: 2400|56,39
O13: 2600|56,43
O15: 3000|55,75
O16: 3200|55,58
O17: 3400|54,81
O18: 3600|54,51
O19: 3800|54,67
O20: 4000|53,98
O21: 4200|54,16
O22: 4400|53,24
O23: 4600|52,95
O24: 4800|52,47
O25: 5000|52,5
O27: 5400|51,95
O28: 5600|51,72
O29: 5800|51,29
O30: 6000|51,07
O31: 6200|50,32
O32: 6400|50,68
O34: 6800|48,93
O35: 7000|48,71
O36: 7200|49,38
O37: 7400|49,42
O38: 7600|47,25
O39: 7800|47,97
O40: 8000|47,04
O42: 8400|47,25
O43: 8600|44,76
O44: 8800|45,3
O45: 9000|45,24 | P45: 13° | Q45: 250us
O46: 9200|46,08
O47: 9400|45,84
O48: 9600|45,12
O49: 9800|45,36
O50: 10000|42,58
